{"text_format":"1","workbook":"xlsx","n_sheets":19,"sheets":["Hyppy","Nojapuut","Puomi","Permanto","Rekki","Hevonen","Tulokset","FinaaliHE","FinaaliPP","FinaaliNR","HyppyT","NojapuutT","PuomiT","PermantoT","RekkiT","HevonenT","Asetukset","Tulostus","Nimilista"],"not_rendered":{"charts":0,"images":31,"macros":1,"external_links":0,"defined_names":56,"comments":0,"pivot_tables":0},"unopened":[],"bounds":{"document_bytes":16777216,"sheet_cells":100000,"rows_first":2000,"rows_last":500,"rows_between":2000,"halvings":0,"cell_chars":16384,"cell_head_chars":4096},"cells_cut":0,"cells_raw":0,"read":"whole","date_system":"1900"}

{"sheet":"Hyppy","index":0,"n_rows":34,"n_cols":23,"rows_kept":34,"cut":false,"hidden":false,"merged":[[0,0,0,2]]}
["Hyppy",null,null,null,40,"1",null,null,null,null,null,null,"",null,"2",null,null,null,null,null,null,""]
[0,"Nr","Nimi","Seura","suor","D","E1","E2","E3","E4","väh","E","Yhteensä",null,"D","E1","E2","E3","E4","väh","E","Yhteensä","Tulos"]
[1,34,{"$f":"VLOOKUP($B3,nimilista,2,FALSE)","v":"Pihla-Maaria Ojala"},{"$f":"VLOOKUP($B3,nimilista,5,FALSE)","v":"Oulun Pyrintö"},null,null,null,null,null,null,null,{"$f":"IF(ISBLANK(J3),\"\",10-(SUM(G3:J3)-MIN(G3:J3)-MAX(G3:J3))/2)","v":""},{"$f":"IF(ISBLANK(J3),0,F3-K3+L3)","v":0},null,null,null,null,null,null,null,{"$f":"IF(ISBLANK(S3),\"\",10-(SUM(P3:S3)-MIN(P3:S3)-MAX(P3:S3))/2)","v":""},{"$f":"IF(ISBLANK(S3),0,O3-T3+U3)","v":0},{"$f":"IF(ISBLANK(S3),\"\",(M3+V3)/2)","v":""}]
[2,36,"Erika Pakkala","Suomen Taitovoimistelu Klubi",null,null,null,null,null,null,null,{"$f":"IF(ISBLANK(J4),\"\",10-(SUM(G4:J4)-MIN(G4:J4)-MAX(G4:J4))/2)","v":""},{"$f":"IF(ISBLANK(J4),0,F4-K4+L4)","v":0},null,null,null,null,null,null,null,{"$f":"IF(ISBLANK(S4),\"\",10-(SUM(P4:S4)-MIN(P4:S4)-MAX(P4:S4))/2)","v":""},{"$f":"IF(ISBLANK(S4),0,O4-T4+U4)","v":0},{"$f":"IF(ISBLANK(S4),\"\",(M4+V4)/2)","v":""}]
[3,40,"Annika Urvikko","Tampereen Voimistelijat",null,2,1,1,1,1,null,{"$f":"IF(ISBLANK(J5),\"\",10-(SUM(G5:J5)-MIN(G5:J5)-MAX(G5:J5))/2)","v":9},{"$f":"IF(ISBLANK(J5),0,F5-K5+L5)","v":11},null,null,null,null,null,null,null,{"$f":"IF(ISBLANK(S5),\"\",10-(SUM(P5:S5)-MIN(P5:S5)-MAX(P5:S5))/2)","v":""},{"$f":"IF(ISBLANK(S5),0,O5-T5+U5)","v":0},""]
[4,44,"Rosanna Ojala","Tampereen Voimistelijat",null,null,null,null,null,null,null,"",0,null,null,null,null,null,null,null,"",0,""]
[5,48,"Roosa Rantanen","Turun Urheiluliitto",null,null,null,null,null,null,null,"",0,null,null,null,null,null,null,null,"",0,""]
[6,50,"Paula Tiitta","Voimisteluseura Keski-Uusimaa",null,null,null,null,null,null,null,"",0,null,null,null,null,null,null,null,"",0,""]
[null,null,null,null,null,null,null,null,null,null,null,null,null,null,null,null,null,null,null,null,null,null,""]
[8,null,null,null,null,null,null,null,null,null,null,null,null,null,null,null,null,null,null,null,null,null,""]
[9,null,null,null,null,null,null,null,null,null,null,null,null,null,null,null,null,null,null,null,null,null,""]
[10,null,null,null,null,null,null,null,null,null,null,null,null,null,null,null,null,null,null,null,null,null,""]
[11,null,null,null,null,null,null,null,null,null,null,null,null,null,null,null,null,null,null,null,null,null,""]
[12,null,null,null,null,null,null,null,null,null,null,null,null,null,null,null,null,null,null,null,null,null,""]
[13,null,null,null,null,null,null,null,null,null,null,null,null,null,null,null,null,null,null,null,null,null,""]
[14,null,null,null,null,null,null,null,null,null,null,null,null,null,null,null,null,null,null,null,null,null,""]
[15,null,null,null,null,null,null,null,null,null,null,null,null,null,null,null,null,null,null,null,null,null,""]
[16,null,null,null,null,null,null,null,null,null,null,null,null,null,null,null,null,null,null,null,null,null,""]
[17,null,null,null,null,null,null,null,null,null,null,null,null,null,null,null,null,null,null,null,null,null,""]
[18,null,null,null,null,null,null,null,null,null,null,null,null,null,null,null,null,null,null,null,null,null,""]
[19,null,null,null,null,null,null,null,null,null,null,null,null,null,null,null,null,null,null,null,null,null,""]
[20,null,null,null,null,null,null,null,null,null,null,null,null,null,null,null,null,null,null,null,null,null,""]
[21,null,null,null,null,null,null,null,null,null,null,null,null,null,null,null,null,null,null,null,null,null,""]
[22,null,null,null,null,null,null,null,null,null,null,null,null,null,null,null,null,null,null,null,null,null,""]
[23,null,null,null,null,null,null,null,null,null,null,null,null,null,null,null,null,null,null,null,null,null,""]
[24]
[25]
[26]
[27]
[28]
[29]
[30]
[31]
[32]

{"sheet":"Nojapuut","index":1,"n_rows":34,"n_cols":13,"rows_kept":34,"cut":false,"hidden":false,"merged":[[0,0,0,2]]}
["Eritasonojapuut",null,null,null,52,null,null,null,null,null,null,null,""]
[0,"Nr","Nimi","Seura","suor","D","E1","E2","E3","E4","väh","E","Yhteensä"]
[1,34,{"$f":"VLOOKUP($B3,nimilista,2,FALSE)","v":"Pihla-Maaria Ojala"},{"$f":"VLOOKUP($B3,nimilista,5,FALSE)","v":"Oulun Pyrintö"},null,null,null,null,null,null,null,{"$f":"IF(ISBLANK(J3),\"\",10-(SUM(G3:J3)-MIN(G3:J3)-MAX(G3:J3))/2)","v":""},{"$f":"IF(ISBLANK(J3),0,F3-K3+L3)","v":0}]
[2,36,"Erika Pakkala","Suomen Taitovoimistelu Klubi",null,null,null,null,null,null,null,{"$f":"IF(ISBLANK(J4),\"\",10-(SUM(G4:J4)-MIN(G4:J4)-MAX(G4:J4))/2)","v":""},{"$f":"IF(ISBLANK(J4),0,F4-K4+L4)","v":0}]
[3,40,"Annika Urvikko","Tampereen Voimistelijat",null,null,null,null,null,null,null,{"$f":"IF(ISBLANK(J5),\"\",10-(SUM(G5:J5)-MIN(G5:J5)-MAX(G5:J5))/2)","v":""},{"$f":"IF(ISBLANK(J5),0,F5-K5+L5)","v":0}]
[4,44,"Rosanna Ojala","Tampereen Voimistelijat",null,null,null,null,null,null,null,"",0]
[5,51,"Inna Nyyssönen","Voimisteluseura Kieppi",null,null,null,null,null,null,null,"",0]
[6,52,"Mimosa Raitamaa","Voimisteluseura Kieppi",null,null,null,null,null,null,null,"",0]
[7]
[8]
[9]
[10]
[11]
[12]
[13]
[14]
[15]
[16]
[17]
[18]
[19]
[20]
[21]
[22]
[23]
[24]
[25]
[26]
[27]
[28]
[29]
[30]
[31]
[32]

{"sheet":"Puomi","index":2,"n_rows":34,"n_cols":13,"rows_kept":34,"cut":false,"hidden":false,"merged":[[0,0,0,2]]}
["Puomi",null,null,null,null,null,null,null,null,null,null,null,""]
[0,"Nr","Nimi","Seura","suor","D","E1","E2","E3","E4","väh","E","Yhteensä"]
[1,36,{"$f":"VLOOKUP($B3,nimilista,2,FALSE)","v":"Erika Pakkala"},{"$f":"VLOOKUP($B3,nimilista,5,FALSE)","v":"Suomen Taitovoimistelu Klubi"},null,null,null,null,null,null,null,{"$f":"IF(ISBLANK(J3),\"\",10-(SUM(G3:J3)-MIN(G3:J3)-MAX(G3:J3))/2)","v":""},{"$f":"IF(ISBLANK(J3),0,F3-K3+L3)","v":0}]
[2,40,"Annika Urvikko","Tampereen Voimistelijat",null,null,null,null,null,null,null,{"$f":"IF(ISBLANK(J4),\"\",10-(SUM(G4:J4)-MIN(G4:J4)-MAX(G4:J4))/2)","v":""},{"$f":"IF(ISBLANK(J4),0,F4-K4+L4)","v":0}]
[3,41,"Emmiina Sulkanen","Tampereen Voimistelijat",null,null,null,null,null,null,null,{"$f":"IF(ISBLANK(J5),\"\",10-(SUM(G5:J5)-MIN(G5:J5)-MAX(G5:J5))/2)","v":""},{"$f":"IF(ISBLANK(J5),0,F5-K5+L5)","v":0}]
[4,44,"Rosanna Ojala","Tampereen Voimistelijat",null,null,null,null,null,null,null,"",0]
[5,45,"Viivi Suominen","Tampereen Voimistelijat",null,null,null,null,null,null,null,"",0]
[6,52,"Mimosa Raitamaa","Voimisteluseura Kieppi",null,null,null,null,null,null,null,"",0]
[7]
[8]
[9]
[10]
[11]
[12]
[13]
[14]
[15]
[16]
[17]
[18]
[19]
[20]
[21]
[22]
[23]
[24]
[25]
[26]
[27]
[28]
[29,null,null,null,null,null,null,null,null,null,null,""]
[30,null,null,null,null,null,null,null,null,null,null,""]
[31,null,null,null,null,null,null,null,null,null,null,""]
[32,null,null,null,null,null,null,null,null,null,null,""]

{"sheet":"Permanto","index":3,"n_rows":34,"n_cols":13,"rows_kept":34,"cut":false,"hidden":false,"merged":[[0,0,0,2]]}
["Permanto",null,null,null,null,null,null,null,null,null,null,null,""]
[0,"Nr","Nimi","Seura","suor","D","E1","E2","E3","E4","väh","E","Yhteensä"]
[1,34,{"$f":"VLOOKUP($B3,nimilista,2,FALSE)","v":"Pihla-Maaria Ojala"},{"$f":"VLOOKUP($B3,nimilista,5,FALSE)","v":"Oulun Pyrintö"}," ",null,null,null,null,null,null,{"$f":"IF(ISBLANK(J3),\"\",10-(SUM(G3:J3)-MIN(G3:J3)-MAX(G3:J3))/2)","v":""},{"$f":"IF(ISBLANK(J3),0,F3-K3+L3)","v":0}]
[2,36,"Erika Pakkala","Suomen Taitovoimistelu Klubi"," ",null,null,null,null,null,null,{"$f":"IF(ISBLANK(J4),\"\",10-(SUM(G4:J4)-MIN(G4:J4)-MAX(G4:J4))/2)","v":""},{"$f":"IF(ISBLANK(J4),0,F4-K4+L4)","v":0}]
[3,40,"Annika Urvikko","Tampereen Voimistelijat"," ",null,null,null,null,null,null,{"$f":"IF(ISBLANK(J5),\"\",10-(SUM(G5:J5)-MIN(G5:J5)-MAX(G5:J5))/2)","v":""},{"$f":"IF(ISBLANK(J5),0,F5-K5+L5)","v":0}]
[4,44,"Rosanna Ojala","Tampereen Voimistelijat"," ",null,null,null,null,null,null,"",0]
[5,47,"Janette Salmenoja","Turun Urheiluliitto"," ",null,null,null,null,null,null,"",0]
[6,50,"Paula Tiitta","Voimisteluseura Keski-Uusimaa"," ",null,null,null,null,null,null,"",0]
[7]
[8]
[9]
[10]
[11]
[12]
[13]
[14]
[15]
[16]
[17]
[18]
[19]
[20]
[21]
[22]
[23]
[24]
[25]
[26]
[27]
[28]
[29]
[30]
[31]
[32]

{"sheet":"Rekki","index":4,"n_rows":34,"n_cols":13,"rows_kept":34,"cut":false,"hidden":false,"merged":[[0,0,0,2]]}
["Rekki",null,null,null,3,null,null,null,null,null,null,null,""]
[0,"Nr","Nimi","Seura","suor","D","E1","E2","E3","E4","väh","E","Yhteensä"]
[1,30,{"$f":"VLOOKUP($B3,nimilista,2,FALSE)","v":"Emilia Nevalainen"},{"$f":"VLOOKUP($B3,nimilista,5,FALSE)","v":"Alppilan Salamat"},null,null,null,null,null,null,null,{"$f":"IF(ISBLANK(J3),\"\",10-(SUM(G3:J3)-MIN(G3:J3)-MAX(G3:J3))/2)","v":""},{"$f":"IF(ISBLANK(J3),0,F3-K3+L3)","v":0}]
[2,31,"Mari Kuoppala","Oulun Pyrintö",null,null,null,null,null,null,null,{"$f":"IF(ISBLANK(J4),\"\",10-(SUM(G4:J4)-MIN(G4:J4)-MAX(G4:J4))/2)","v":""},{"$f":"IF(ISBLANK(J4),0,F4-K4+L4)","v":0}]
[3,32,"Meri-Tuuli Himanen","Oulun Pyrintö",null,null,null,null,null,null,null,{"$f":"IF(ISBLANK(J5),\"\",10-(SUM(G5:J5)-MIN(G5:J5)-MAX(G5:J5))/2)","v":""},{"$f":"IF(ISBLANK(J5),0,F5-K5+L5)","v":0}]
[4,33,"Milja Pulkkinen","Oulun Pyrintö",null,null,null,null,null,null,null,"",0]
[5,34,"Pihla-Maaria Ojala","Oulun Pyrintö",null,null,null,null,null,null,null,"",0]
[6,35,"Sofia Pulkkinen","Oulun Pyrintö",null,null,null,null,null,null,null,"",0]
[7,36,"Erika Pakkala","Suomen Taitovoimistelu Klubi",null,null,null,null,null,null,null,"",0]
[8,37,"Nea Räsänen","Suomen Taitovoimistelu Klubi",null,null,null,null,null,null,null,"",0]
[9,38,"Sara Pakkanen","Suomen Taitovoimistelu Klubi",null,null,null,null,null,null,null,"",0]
[10,39,"Seidi Kauppi","Suomen Taitovoimistelu Klubi",null,null,null,null,null,null,null,"",0]
[11,40,"Annika Urvikko","Tampereen Voimistelijat",null,null,null,null,null,null,null,"",0]
[12,41,"Emmiina Sulkanen","Tampereen Voimistelijat",null,null,null,null,null,null,null,"",0]
[13,42,"Katya Attard","Tampereen Voimistelijat",null,null,null,null,null,null,null,"",0]
[14,43,"Maria Kekki","Tampereen Voimistelijat",null,null,null,null,null,null,null,"",0]
[15,44,"Rosanna Ojala","Tampereen Voimistelijat",null,null,null,null,null,null,null,"",0]
[16,45,"Viivi Suominen","Tampereen Voimistelijat",null,null,null,null,null,null,null,"",0]
[17,46,"Sannamari Lähde","Turun Pyrkivä",null,null,null,null,null,null,null,"",0]
[18,47,"Janette Salmenoja","Turun Urheiluliitto",null,null,null,null,null,null,null,"",0]
[19,48,"Roosa Rantanen","Turun Urheiluliitto",null,null,null,null,null,null,null,"",0]
[20,49,"Tuulia Räisänen","Vaasan Telinetaiturit",null,null,null,null,null,null,null,"",0]
[21,50,"Paula Tiitta","Voimisteluseura Keski-Uusimaa",null,null,null,null,null,null,null,"",0]
[22,51,"Inna Nyyssönen","Voimisteluseura Kieppi",null,null,null,null,null,null,null,"",0]
[23,52,"Mimosa Raitamaa","Voimisteluseura Kieppi",null,null,null,null,null,null,null,"",0]
[24]
[25]
[26]
[27]
[28]
[29]
[30]
[31]
[32]

{"sheet":"Hevonen","index":5,"n_rows":34,"n_cols":13,"rows_kept":34,"cut":false,"hidden":false,"merged":[[0,0,0,2]]}
["Hevonen",null,null,null,3,null,null,null,null,null,null,null,""]
[0,"Nr","Nimi","Seura","suor","D","E1","E2","E3","E4","väh","E","Yhteensä"]
[1,30,{"$f":"VLOOKUP($B3,nimilista,2,FALSE)","v":"Emilia Nevalainen"},{"$f":"VLOOKUP($B3,nimilista,5,FALSE)","v":"Alppilan Salamat"},null,null,null,null,null,null,null,{"$f":"IF(ISBLANK(J3),\"\",10-(SUM(G3:J3)-MIN(G3:J3)-MAX(G3:J3))/2)","v":""},{"$f":"IF(ISBLANK(J3),0,F3-K3+L3)","v":0}]
[2,31,"Mari Kuoppala","Oulun Pyrintö",null,null,null,null,null,null,null,{"$f":"IF(ISBLANK(J4),\"\",10-(SUM(G4:J4)-MIN(G4:J4)-MAX(G4:J4))/2)","v":""},{"$f":"IF(ISBLANK(J4),0,F4-K4+L4)","v":0}]
[3,32,"Meri-Tuuli Himanen","Oulun Pyrintö",null,null,null,null,null,null,null,{"$f":"IF(ISBLANK(J5),\"\",10-(SUM(G5:J5)-MIN(G5:J5)-MAX(G5:J5))/2)","v":""},{"$f":"IF(ISBLANK(J5),0,F5-K5+L5)","v":0}]
[4,33,"Milja Pulkkinen","Oulun Pyrintö",null,null,null,null,null,null,null,"",0]
[5,34,"Pihla-Maaria Ojala","Oulun Pyrintö",null,null,null,null,null,null,null,"",0]
[6,35,"Sofia Pulkkinen","Oulun Pyrintö",null,null,null,null,null,null,null,"",0]
[7,36,"Erika Pakkala","Suomen Taitovoimistelu Klubi",null,null,null,null,null,null,null,"",0]
[8,37,"Nea Räsänen","Suomen Taitovoimistelu Klubi",null,null,null,null,null,null,null,"",0]
[9,38,"Sara Pakkanen","Suomen Taitovoimistelu Klubi",null,null,null,null,null,null,null,"",0]
[10,39,"Seidi Kauppi","Suomen Taitovoimistelu Klubi",null,null,null,null,null,null,null,"",0]
[11,40,"Annika Urvikko","Tampereen Voimistelijat",null,null,null,null,null,null,null,"",0]
[12,41,"Emmiina Sulkanen","Tampereen Voimistelijat",null,null,null,null,null,null,null,"",0]
[13,42,"Katya Attard","Tampereen Voimistelijat",null,null,null,null,null,null,null,"",0]
[14,43,"Maria Kekki","Tampereen Voimistelijat",null,null,null,null,null,null,null,"",0]
[15,44,"Rosanna Ojala","Tampereen Voimistelijat",null,null,null,null,null,null,null,"",0]
[16,45,"Viivi Suominen","Tampereen Voimistelijat",null,null,null,null,null,null,null,"",0]
[17,46,"Sannamari Lähde","Turun Pyrkivä",null,null,null,null,null,null,null,"",0]
[18,47,"Janette Salmenoja","Turun Urheiluliitto",null,null,null,null,null,null,null,"",0]
[19,48,"Roosa Rantanen","Turun Urheiluliitto",null,null,null,null,null,null,null,"",0]
[20,49,"Tuulia Räisänen","Vaasan Telinetaiturit",null,null,null,null,null,null,null,"",0]
[21,50,"Paula Tiitta","Voimisteluseura Keski-Uusimaa",null,null,null,null,null,null,null,"",0]
[22,51,"Inna Nyyssönen","Voimisteluseura Kieppi",null,null,null,null,null,null,null,"",0]
[23,52,"Mimosa Raitamaa","Voimisteluseura Kieppi",null,null,null,null,null,null,null,"",0]
[24]
[25]
[26]
[27]
[28]
[29]
[30]
[31]
[32]

{"sheet":"Tulokset","index":6,"n_rows":27,"n_cols":15,"rows_kept":27,"cut":false,"hidden":false,"merged":[[2,0,2,2],[1,4,1,5],[0,4,0,5],[1,6,1,8],[1,11,1,12],[0,6,0,8],[0,11,0,12]]}
[{"$f":"teline1","v":1},{"$f":"kuka1","v":40},{"$f":"IF($B1<=0,\"\",VLOOKUP(B1,B4:M27,2,FALSE))","v":"Annika Urvikko"},null,{"$f":"IF($B1<=0,\"\",VLOOKUP($B1,$B$5:$M$27,($A1-1)*2+4,FALSE))","v":2},null,{"$f":"IF($B1<=0,\"\",VLOOKUP($B1,$B$5:$M$27,($A1-1)*2+5,FALSE))","v":11},null,null,null,null,{"$f":"IF($B1<=0,\"\",VLOOKUP($B1,$B$5:$M$27,12,FALSE))","v":11}]
[{"$f":"teline2","v":2},{"$f":"kuka2","v":52},{"$f":"IF($B2<=0,\"\",VLOOKUP(B2,B5:M27,2,FALSE))","v":"Mimosa Raitamaa"},null,{"$f":"IF($B2<=0,\"\",VLOOKUP($B2,$B$5:$M$27,($A2-1)*2+4,FALSE))","v":0},null,{"$f":"IF($B2<=0,\"\",VLOOKUP($B2,$B$5:$M$27,($A2-1)*2+5,FALSE))","v":0},null,null,null,null,{"$f":"IF($B2<=0,\"\",VLOOKUP($B2,$B$5:$M$27,12,FALSE))","v":{"$error":"#N/A"}}]
[{"$f":"Tulostus!A3","v":"Naisten 4-ottelu"},null,null,null,null,{"$f":"Permanto!$M$1","v":""},null,{"$f":"Hevonen!$M$1","v":""},null,{"$f":"Puomi!$M$1","v":""},null,{"$f":"Rekki!$M$1","v":""},null,"ero"]
[0,"Nr","Nimi","Seura","D","yht","D","yht","D","yht","D","yht","Yhteensä","kärkeen"]
[{"$f":"A4+1","v":1},{"$f":"Tulostus!B5","v":30},{"$f":"Tulostus!C5","v":"Emilia Nevalainen"},{"$f":"VLOOKUP(B5,nimilista,6,FALSE)","v":"AS"},{"$f":"Tulostus!E5","v":{"$error":"#N/A"}},{"$f":"Tulostus!F5","v":{"$error":"#N/A"}},{"$f":"Tulostus!G5","v":{"$error":"#N/A"}},{"$f":"Tulostus!H5","v":{"$error":"#N/A"}},{"$f":"Tulostus!I5","v":{"$error":"#N/A"}},{"$f":"Tulostus!J5","v":{"$error":"#N/A"}},{"$f":"Tulostus!K5","v":{"$error":"#N/A"}},{"$f":"Tulostus!L5","v":{"$error":"#N/A"}},{"$f":"Tulostus!M5","v":{"$error":"#N/A"}},{"$f":"M5-$M$5","v":{"$error":"#N/A"}}]
[2,{"$f":"Tulostus!B6","v":31},{"$f":"Tulostus!C6","v":"Mari Kuoppala"},"OP",{"$f":"Tulostus!E6","v":{"$error":"#N/A"}},{"$f":"Tulostus!F6","v":{"$error":"#N/A"}},{"$f":"Tulostus!G6","v":{"$error":"#N/A"}},{"$f":"Tulostus!H6","v":{"$error":"#N/A"}},{"$f":"Tulostus!I6","v":{"$error":"#N/A"}},{"$f":"Tulostus!J6","v":{"$error":"#N/A"}},{"$f":"Tulostus!K6","v":{"$error":"#N/A"}},{"$f":"Tulostus!L6","v":{"$error":"#N/A"}},{"$f":"Tulostus!M6","v":{"$error":"#N/A"}},{"$error":"#N/A"},{"$f":"IF((M6=M5),IF((M6=0),\"\",\"tie\"),\"\")","v":{"$error":"#N/A"}}]
[3,{"$f":"Tulostus!B7","v":32},{"$f":"Tulostus!C7","v":"Meri-Tuuli Himanen"},"OP",{"$f":"Tulostus!E7","v":{"$error":"#N/A"}},{"$f":"Tulostus!F7","v":{"$error":"#N/A"}},{"$f":"Tulostus!G7","v":{"$error":"#N/A"}},{"$f":"Tulostus!H7","v":{"$error":"#N/A"}},{"$f":"Tulostus!I7","v":{"$error":"#N/A"}},{"$f":"Tulostus!J7","v":{"$error":"#N/A"}},{"$f":"Tulostus!K7","v":{"$error":"#N/A"}},{"$f":"Tulostus!L7","v":{"$error":"#N/A"}},{"$f":"Tulostus!M7","v":{"$error":"#N/A"}},{"$error":"#N/A"},{"$error":"#N/A"}]
[4,{"$f":"Tulostus!B8","v":33},{"$f":"Tulostus!C8","v":"Milja Pulkkinen"},"OP",{"$f":"Tulostus!E8","v":{"$error":"#N/A"}},{"$f":"Tulostus!F8","v":{"$error":"#N/A"}},{"$f":"Tulostus!G8","v":{"$error":"#N/A"}},{"$f":"Tulostus!H8","v":{"$error":"#N/A"}},{"$f":"Tulostus!I8","v":{"$error":"#N/A"}},{"$f":"Tulostus!J8","v":{"$error":"#N/A"}},{"$f":"Tulostus!K8","v":{"$error":"#N/A"}},{"$f":"Tulostus!L8","v":{"$error":"#N/A"}},{"$f":"Tulostus!M8","v":{"$error":"#N/A"}},{"$error":"#N/A"},{"$error":"#N/A"}]
[5,{"$f":"Tulostus!B9","v":34},{"$f":"Tulostus!C9","v":"Pihla-Maaria Ojala"},"OP",{"$f":"Tulostus!E9","v":0},{"$f":"Tulostus!F9","v":0},{"$f":"Tulostus!G9","v":0},{"$f":"Tulostus!H9","v":0},{"$f":"Tulostus!I9","v":{"$error":"#N/A"}},{"$f":"Tulostus!J9","v":{"$error":"#N/A"}},{"$f":"Tulostus!K9","v":0},{"$f":"Tulostus!L9","v":0},{"$f":"Tulostus!M9","v":{"$error":"#N/A"}},{"$error":"#N/A"},{"$error":"#N/A"}]
[6,{"$f":"Tulostus!B10","v":35},{"$f":"Tulostus!C10","v":"Sofia Pulkkinen"},"OP",{"$f":"Tulostus!E10","v":{"$error":"#N/A"}},{"$f":"Tulostus!F10","v":{"$error":"#N/A"}},{"$f":"Tulostus!G10","v":{"$error":"#N/A"}},{"$f":"Tulostus!H10","v":{"$error":"#N/A"}},{"$f":"Tulostus!I10","v":{"$error":"#N/A"}},{"$f":"Tulostus!J10","v":{"$error":"#N/A"}},{"$f":"Tulostus!K10","v":{"$error":"#N/A"}},{"$f":"Tulostus!L10","v":{"$error":"#N/A"}},{"$f":"Tulostus!M10","v":{"$error":"#N/A"}},{"$error":"#N/A"},{"$error":"#N/A"}]
[7,{"$f":"Tulostus!B11","v":36},{"$f":"Tulostus!C11","v":"Erika Pakkala"},"STVK",{"$f":"Tulostus!E11","v":0},{"$f":"Tulostus!F11","v":0},{"$f":"Tulostus!G11","v":0},{"$f":"Tulostus!H11","v":0},{"$f":"Tulostus!I11","v":0},{"$f":"Tulostus!J11","v":0},{"$f":"Tulostus!K11","v":0},{"$f":"Tulostus!L11","v":0},{"$f":"Tulostus!M11","v":0},{"$error":"#N/A"},{"$error":"#N/A"}]
[8,{"$f":"Tulostus!B12","v":37},{"$f":"Tulostus!C12","v":"Nea Räsänen"},"STVK",{"$f":"Tulostus!E12","v":{"$error":"#N/A"}},{"$f":"Tulostus!F12","v":{"$error":"#N/A"}},{"$f":"Tulostus!G12","v":{"$error":"#N/A"}},{"$f":"Tulostus!H12","v":{"$error":"#N/A"}},{"$f":"Tulostus!I12","v":{"$error":"#N/A"}},{"$f":"Tulostus!J12","v":{"$error":"#N/A"}},{"$f":"Tulostus!K12","v":{"$error":"#N/A"}},{"$f":"Tulostus!L12","v":{"$error":"#N/A"}},{"$f":"Tulostus!M12","v":{"$error":"#N/A"}},{"$error":"#N/A"},{"$error":"#N/A"}]
[9,{"$f":"Tulostus!B13","v":38},{"$f":"Tulostus!C13","v":"Sara Pakkanen"},"STVK",{"$f":"Tulostus!E13","v":{"$error":"#N/A"}},{"$f":"Tulostus!F13","v":{"$error":"#N/A"}},{"$f":"Tulostus!G13","v":{"$error":"#N/A"}},{"$f":"Tulostus!H13","v":{"$error":"#N/A"}},{"$f":"Tulostus!I13","v":{"$error":"#N/A"}},{"$f":"Tulostus!J13","v":{"$error":"#N/A"}},{"$f":"Tulostus!K13","v":{"$error":"#N/A"}},{"$f":"Tulostus!L13","v":{"$error":"#N/A"}},{"$f":"Tulostus!M13","v":{"$error":"#N/A"}},{"$error":"#N/A"},{"$error":"#N/A"}]
[10,{"$f":"Tulostus!B14","v":39},{"$f":"Tulostus!C14","v":"Seidi Kauppi"},"STVK",{"$f":"Tulostus!E14","v":{"$error":"#N/A"}},{"$f":"Tulostus!F14","v":{"$error":"#N/A"}},{"$f":"Tulostus!G14","v":{"$error":"#N/A"}},{"$f":"Tulostus!H14","v":{"$error":"#N/A"}},{"$f":"Tulostus!I14","v":{"$error":"#N/A"}},{"$f":"Tulostus!J14","v":{"$error":"#N/A"}},{"$f":"Tulostus!K14","v":{"$error":"#N/A"}},{"$f":"Tulostus!L14","v":{"$error":"#N/A"}},{"$f":"Tulostus!M14","v":{"$error":"#N/A"}},{"$error":"#N/A"},{"$error":"#N/A"}]
[11,{"$f":"Tulostus!B15","v":40},{"$f":"Tulostus!C15","v":"Annika Urvikko"},"TV",{"$f":"Tulostus!E15","v":2},{"$f":"Tulostus!F15","v":11},{"$f":"Tulostus!G15","v":0},{"$f":"Tulostus!H15","v":0},{"$f":"Tulostus!I15","v":0},{"$f":"Tulostus!J15","v":0},{"$f":"Tulostus!K15","v":0},{"$f":"Tulostus!L15","v":0},{"$f":"Tulostus!M15","v":11},{"$error":"#N/A"},{"$error":"#N/A"}]
[12,{"$f":"Tulostus!B16","v":41},{"$f":"Tulostus!C16","v":"Emmiina Sulkanen"},"TV",{"$f":"Tulostus!E16","v":{"$error":"#N/A"}},{"$f":"Tulostus!F16","v":{"$error":"#N/A"}},{"$f":"Tulostus!G16","v":{"$error":"#N/A"}},{"$f":"Tulostus!H16","v":{"$error":"#N/A"}},{"$f":"Tulostus!I16","v":0},{"$f":"Tulostus!J16","v":0},{"$f":"Tulostus!K16","v":{"$error":"#N/A"}},{"$f":"Tulostus!L16","v":{"$error":"#N/A"}},{"$f":"Tulostus!M16","v":{"$error":"#N/A"}},{"$error":"#N/A"},{"$error":"#N/A"}]
[13,{"$f":"Tulostus!B17","v":42},{"$f":"Tulostus!C17","v":"Katya Attard"},"TV",{"$f":"Tulostus!E17","v":{"$error":"#N/A"}},{"$f":"Tulostus!F17","v":{"$error":"#N/A"}},{"$f":"Tulostus!G17","v":{"$error":"#N/A"}},{"$f":"Tulostus!H17","v":{"$error":"#N/A"}},{"$f":"Tulostus!I17","v":{"$error":"#N/A"}},{"$f":"Tulostus!J17","v":{"$error":"#N/A"}},{"$f":"Tulostus!K17","v":{"$error":"#N/A"}},{"$f":"Tulostus!L17","v":{"$error":"#N/A"}},{"$f":"Tulostus!M17","v":{"$error":"#N/A"}},{"$error":"#N/A"},{"$error":"#N/A"}]
[14,{"$f":"Tulostus!B18","v":43},{"$f":"Tulostus!C18","v":"Maria Kekki"},"TV",{"$f":"Tulostus!E18","v":{"$error":"#N/A"}},{"$f":"Tulostus!F18","v":{"$error":"#N/A"}},{"$f":"Tulostus!G18","v":{"$error":"#N/A"}},{"$f":"Tulostus!H18","v":{"$error":"#N/A"}},{"$f":"Tulostus!I18","v":{"$error":"#N/A"}},{"$f":"Tulostus!J18","v":{"$error":"#N/A"}},{"$f":"Tulostus!K18","v":{"$error":"#N/A"}},{"$f":"Tulostus!L18","v":{"$error":"#N/A"}},{"$f":"Tulostus!M18","v":{"$error":"#N/A"}},{"$error":"#N/A"},{"$error":"#N/A"}]
[15,{"$f":"Tulostus!B19","v":44},{"$f":"Tulostus!C19","v":"Rosanna Ojala"},"TV",{"$f":"Tulostus!E19","v":0},{"$f":"Tulostus!F19","v":0},{"$f":"Tulostus!G19","v":0},{"$f":"Tulostus!H19","v":0},{"$f":"Tulostus!I19","v":0},{"$f":"Tulostus!J19","v":0},{"$f":"Tulostus!K19","v":0},{"$f":"Tulostus!L19","v":0},{"$f":"Tulostus!M19","v":0},{"$error":"#N/A"},{"$error":"#N/A"}]
[16,{"$f":"Tulostus!B20","v":45},{"$f":"Tulostus!C20","v":"Viivi Suominen"},"TV",{"$f":"Tulostus!E20","v":{"$error":"#N/A"}},{"$f":"Tulostus!F20","v":{"$error":"#N/A"}},{"$f":"Tulostus!G20","v":{"$error":"#N/A"}},{"$f":"Tulostus!H20","v":{"$error":"#N/A"}},{"$f":"Tulostus!I20","v":0},{"$f":"Tulostus!J20","v":0},{"$f":"Tulostus!K20","v":{"$error":"#N/A"}},{"$f":"Tulostus!L20","v":{"$error":"#N/A"}},{"$f":"Tulostus!M20","v":{"$error":"#N/A"}},{"$error":"#N/A"},{"$error":"#N/A"}]
[17,{"$f":"Tulostus!B21","v":46},{"$f":"Tulostus!C21","v":"Sannamari Lähde"},"Tupy",{"$f":"Tulostus!E21","v":{"$error":"#N/A"}},{"$f":"Tulostus!F21","v":{"$error":"#N/A"}},{"$f":"Tulostus!G21","v":{"$error":"#N/A"}},{"$f":"Tulostus!H21","v":{"$error":"#N/A"}},{"$f":"Tulostus!I21","v":{"$error":"#N/A"}},{"$f":"Tulostus!J21","v":{"$error":"#N/A"}},{"$f":"Tulostus!K21","v":{"$error":"#N/A"}},{"$f":"Tulostus!L21","v":{"$error":"#N/A"}},{"$f":"Tulostus!M21","v":{"$error":"#N/A"}},{"$error":"#N/A"},{"$error":"#N/A"}]
[18,{"$f":"Tulostus!B22","v":47},{"$f":"Tulostus!C22","v":"Janette Salmenoja"},"TuUL",{"$f":"Tulostus!E22","v":{"$error":"#N/A"}},{"$f":"Tulostus!F22","v":{"$error":"#N/A"}},{"$f":"Tulostus!G22","v":{"$error":"#N/A"}},{"$f":"Tulostus!H22","v":{"$error":"#N/A"}},{"$f":"Tulostus!I22","v":{"$error":"#N/A"}},{"$f":"Tulostus!J22","v":{"$error":"#N/A"}},{"$f":"Tulostus!K22","v":0},{"$f":"Tulostus!L22","v":0},{"$f":"Tulostus!M22","v":{"$error":"#N/A"}},{"$error":"#N/A"},{"$error":"#N/A"}]
[19,{"$f":"Tulostus!B23","v":48},{"$f":"Tulostus!C23","v":"Roosa Rantanen"},"TuUL",{"$f":"Tulostus!E23","v":0},{"$f":"Tulostus!F23","v":0},{"$f":"Tulostus!G23","v":{"$error":"#N/A"}},{"$f":"Tulostus!H23","v":{"$error":"#N/A"}},{"$f":"Tulostus!I23","v":{"$error":"#N/A"}},{"$f":"Tulostus!J23","v":{"$error":"#N/A"}},{"$f":"Tulostus!K23","v":{"$error":"#N/A"}},{"$f":"Tulostus!L23","v":{"$error":"#N/A"}},{"$f":"Tulostus!M23","v":{"$error":"#N/A"}},{"$error":"#N/A"},{"$error":"#N/A"}]
[20,{"$f":"Tulostus!B24","v":49},{"$f":"Tulostus!C24","v":"Tuulia Räisänen"},"VTT",{"$f":"Tulostus!E24","v":{"$error":"#N/A"}},{"$f":"Tulostus!F24","v":{"$error":"#N/A"}},{"$f":"Tulostus!G24","v":{"$error":"#N/A"}},{"$f":"Tulostus!H24","v":{"$error":"#N/A"}},{"$f":"Tulostus!I24","v":{"$error":"#N/A"}},{"$f":"Tulostus!J24","v":{"$error":"#N/A"}},{"$f":"Tulostus!K24","v":{"$error":"#N/A"}},{"$f":"Tulostus!L24","v":{"$error":"#N/A"}},{"$f":"Tulostus!M24","v":{"$error":"#N/A"}},{"$error":"#N/A"},{"$error":"#N/A"}]
[21,{"$f":"Tulostus!B25","v":50},{"$f":"Tulostus!C25","v":"Paula Tiitta"},"VSK-U",{"$f":"Tulostus!E25","v":0},{"$f":"Tulostus!F25","v":0},{"$f":"Tulostus!G25","v":{"$error":"#N/A"}},{"$f":"Tulostus!H25","v":{"$error":"#N/A"}},{"$f":"Tulostus!I25","v":{"$error":"#N/A"}},{"$f":"Tulostus!J25","v":{"$error":"#N/A"}},{"$f":"Tulostus!K25","v":0},{"$f":"Tulostus!L25","v":0},{"$f":"Tulostus!M25","v":{"$error":"#N/A"}},{"$error":"#N/A"},{"$error":"#N/A"}]
[22,{"$f":"Tulostus!B26","v":51},{"$f":"Tulostus!C26","v":"Inna Nyyssönen"},"Kieppi",{"$f":"Tulostus!E26","v":{"$error":"#N/A"}},{"$f":"Tulostus!F26","v":{"$error":"#N/A"}},{"$f":"Tulostus!G26","v":0},{"$f":"Tulostus!H26","v":0},{"$f":"Tulostus!I26","v":{"$error":"#N/A"}},{"$f":"Tulostus!J26","v":{"$error":"#N/A"}},{"$f":"Tulostus!K26","v":{"$error":"#N/A"}},{"$f":"Tulostus!L26","v":{"$error":"#N/A"}},{"$f":"Tulostus!M26","v":{"$error":"#N/A"}},{"$error":"#N/A"},{"$error":"#N/A"}]
[23,{"$f":"Tulostus!B27","v":52},{"$f":"Tulostus!C27","v":"Mimosa Raitamaa"},"Kieppi",{"$f":"Tulostus!E27","v":{"$error":"#N/A"}},{"$f":"Tulostus!F27","v":{"$error":"#N/A"}},{"$f":"Tulostus!G27","v":0},{"$f":"Tulostus!H27","v":0},{"$f":"Tulostus!I27","v":0},{"$f":"Tulostus!J27","v":0},{"$f":"Tulostus!K27","v":{"$error":"#N/A"}},{"$f":"Tulostus!L27","v":{"$error":"#N/A"}},{"$f":"Tulostus!M27","v":{"$error":"#N/A"}},{"$error":"#N/A"},{"$error":"#N/A"}]

{"sheet":"FinaaliHE","index":7,"n_rows":40,"n_cols":15,"rows_kept":40,"cut":false,"hidden":false,"merged":[[0,10,0,11],[0,12,0,13],[12,12,12,13],[13,0,13,2],[0,6,0,7],[1,0,1,2],[12,6,12,7],[12,10,12,11],[0,4,0,5],[12,4,12,5]]}
[1,{"$f":"kuka1","v":40},{"$f":"IF($B1<=0,\"\",VLOOKUP($B1,hyppy,C$40,FALSE))","v":"Annika Urvikko"},null,{"$f":"IF($B1<=0,\"\",VLOOKUP($B1,Hyppy!$B$3:$M$43,E$40,FALSE))","v":2},{"$f":"IF($B1<=0,\"\",VLOOKUP($B1,Permanto!$B$3:$M$43,F$40,FALSE))","v":{"$error":"#VALUE!"}},{"$f":"IF($B1<=0,\"\",VLOOKUP($B1,hyppy,G$40,FALSE))","v":11},{"$f":"IF($B1<=0,\"\",VLOOKUP($B1,hyppy,H$40,FALSE))","v":{"$error":"#VALUE!"}},{"$f":"IF($B1<=0,\"\",VLOOKUP($B1,hyppy,I$40,FALSE))","v":0},null,{"$f":"IF($B1<=0,\"\",VLOOKUP($B1,hyppy,K$40,FALSE))","v":0},{"$f":"IF($B1<=0,\"\",VLOOKUP($B1,hyppy,L$40,FALSE))","v":{"$error":"#VALUE!"}},{"$f":"IF($B1<=0,\"\",VLOOKUP($B1,hyppy,M$40,FALSE))","v":""},{"$f":"IF($B1<=0,\"\",VLOOKUP($B1,hyppy,N$40,FALSE))","v":{"$error":"#VALUE!"}}]
["Hyppy",null,null,null,null,"1",null,"",null,"2",null,""]
[0,"Nr","Nimi","Seura","D","E","väh","Yhteensä","D","E","väh","Yhteensä","Tulos"]
[1,{"$f":"HyppyT!B5","v":34},{"$f":"HyppyT!C5","v":"Pihla-Maaria Ojala"},{"$f":"VLOOKUP(B4,nimilista,6,FALSE)","v":"OP"},{"$f":"HyppyT!E5","v":0},{"$f":"HyppyT!F5","v":""},{"$f":"HyppyT!G5","v":0},{"$f":"HyppyT!H5","v":0},{"$f":"HyppyT!I5","v":0},{"$f":"HyppyT!J5","v":""},{"$f":"HyppyT!K5","v":0},{"$f":"HyppyT!L5","v":0},{"$f":"HyppyT!M5","v":0}]
[2,{"$f":"HyppyT!B6","v":36},{"$f":"HyppyT!C6","v":"Erika Pakkala"},"STVK",{"$f":"HyppyT!E6","v":0},{"$f":"HyppyT!F6","v":""},{"$f":"HyppyT!G6","v":0},{"$f":"HyppyT!H6","v":0},{"$f":"HyppyT!I6","v":0},{"$f":"HyppyT!J6","v":""},{"$f":"HyppyT!K6","v":0},{"$f":"HyppyT!L6","v":0},{"$f":"HyppyT!M6","v":0}]
[3,{"$f":"HyppyT!B7","v":40},{"$f":"HyppyT!C7","v":"Annika Urvikko"},"TV",{"$f":"HyppyT!E7","v":2},{"$f":"HyppyT!F7","v":9},{"$f":"HyppyT!G7","v":0},{"$f":"HyppyT!H7","v":11},{"$f":"HyppyT!I7","v":0},{"$f":"HyppyT!J7","v":""},{"$f":"HyppyT!K7","v":0},{"$f":"HyppyT!L7","v":0},{"$f":"HyppyT!M7","v":5.5}]
[4,{"$f":"HyppyT!B8","v":44},{"$f":"HyppyT!C8","v":"Rosanna Ojala"},"TV",{"$f":"HyppyT!E8","v":0},{"$f":"HyppyT!F8","v":""},{"$f":"HyppyT!G8","v":0},{"$f":"HyppyT!H8","v":0},{"$f":"HyppyT!I8","v":0},{"$f":"HyppyT!J8","v":""},{"$f":"HyppyT!K8","v":0},{"$f":"HyppyT!L8","v":0},{"$f":"HyppyT!M8","v":0}]
[5,{"$f":"HyppyT!B9","v":48},{"$f":"HyppyT!C9","v":"Roosa Rantanen"},"TuUL",{"$f":"HyppyT!E9","v":0},{"$f":"HyppyT!F9","v":""},{"$f":"HyppyT!G9","v":0},{"$f":"HyppyT!H9","v":0},{"$f":"HyppyT!I9","v":0},{"$f":"HyppyT!J9","v":""},{"$f":"HyppyT!K9","v":0},{"$f":"HyppyT!L9","v":0},{"$f":"HyppyT!M9","v":0}]
[6,{"$f":"HyppyT!B10","v":50},{"$f":"HyppyT!C10","v":"Paula Tiitta"},"VSK-U",{"$f":"HyppyT!E10","v":0},{"$f":"HyppyT!F10","v":""},{"$f":"HyppyT!G10","v":0},{"$f":"HyppyT!H10","v":0},{"$f":"HyppyT!I10","v":0},{"$f":"HyppyT!J10","v":""},{"$f":"HyppyT!K10","v":0},{"$f":"HyppyT!L10","v":0},{"$f":"HyppyT!M10","v":0}]
[]
[]
[]
[1,{"$f":"kuka2","v":52},{"$f":"IF($B13<=0,\"\",VLOOKUP($B13,nojapuut,C$40,FALSE))","v":"Mimosa Raitamaa"},null,{"$f":"IF($B13<=0,\"\",VLOOKUP($B13,Nojapuut!$B$3:$M$43,E$40,FALSE))","v":0},{"$f":"IF($B13<=0,\"\",VLOOKUP($B13,Permanto!$B$3:$M$43,F$40,FALSE))","v":{"$error":"#N/A"}},{"$f":"IF($B13<=0,\"\",VLOOKUP($B13,nojapuut,G$40,FALSE))","v":0},{"$f":"IF($B13<=0,\"\",VLOOKUP($B13,hyppy,H$40,FALSE))","v":{"$error":"#N/A"}}]
["Eritasonojapuut",null,null,null,null,null,null,"",null,null,null,null,null,null,{"$f":"IF((M14=M19),IF((M14=0),\"\",\"tie\"),\"\")","v":""}]
[0,"Nr","Nimi","Seura","D","E","väh","Yhteensä"]
[1,{"$f":"NojapuutT!B5","v":34},{"$f":"NojapuutT!C5","v":"Pihla-Maaria Ojala"},{"$f":"VLOOKUP(B16,nimilista,6,FALSE)","v":"OP"},{"$f":"NojapuutT!E5","v":0},{"$f":"NojapuutT!F5","v":""},{"$f":"NojapuutT!G5","v":0},{"$f":"NojapuutT!H5","v":0},null,null,null,null,null,null,{"$f":"IF((M16=M15),IF((M16=0),\"\",\"tie\"),\"\")","v":""}]
[2,{"$f":"NojapuutT!B6","v":36},{"$f":"NojapuutT!C6","v":"Erika Pakkala"},"STVK",{"$f":"NojapuutT!E6","v":0},{"$f":"NojapuutT!F6","v":""},{"$f":"NojapuutT!G6","v":0},{"$f":"NojapuutT!H6","v":0},null,null,null,null,null,null,{"$f":"IF((M17=M16),IF((M17=0),\"\",\"tie\"),\"\")","v":""}]
[3,{"$f":"NojapuutT!B7","v":40},{"$f":"NojapuutT!C7","v":"Annika Urvikko"},"TV",{"$f":"NojapuutT!E7","v":0},{"$f":"NojapuutT!F7","v":""},{"$f":"NojapuutT!G7","v":0},{"$f":"NojapuutT!H7","v":0},null,null,null,null,null,null,{"$f":"IF((M18=M17),IF((M18=0),\"\",\"tie\"),\"\")","v":""}]
[4,{"$f":"NojapuutT!B8","v":44},{"$f":"NojapuutT!C8","v":"Rosanna Ojala"},"TV",{"$f":"NojapuutT!E8","v":0},{"$f":"NojapuutT!F8","v":""},{"$f":"NojapuutT!G8","v":0},{"$f":"NojapuutT!H8","v":0},null,null,null,null,null,null,{"$f":"IF((M19=M18),IF((M19=0),\"\",\"tie\"),\"\")","v":""}]
[5,{"$f":"NojapuutT!B9","v":51},{"$f":"NojapuutT!C9","v":"Inna Nyyssönen"},"Kieppi",{"$f":"NojapuutT!E9","v":0},{"$f":"NojapuutT!F9","v":""},{"$f":"NojapuutT!G9","v":0},{"$f":"NojapuutT!H9","v":0},null,null,null,null,null,null,{"$f":"IF((M20=M14),IF((M20=0),\"\",\"tie\"),\"\")","v":""}]
[6,{"$f":"NojapuutT!B10","v":52},{"$f":"NojapuutT!C10","v":"Mimosa Raitamaa"},"Kieppi",{"$f":"NojapuutT!E10","v":0},{"$f":"NojapuutT!F10","v":""},{"$f":"NojapuutT!G10","v":0},{"$f":"NojapuutT!H10","v":0},null,null,null,null,null,null,{"$f":"IF((M21=M20),IF((M21=0),\"\",\"tie\"),\"\")","v":""}]
[null,null,null,null,null,null,null,null,null,null,null,null,null,null,{"$f":"IF((M22=M21),IF((M22=0),\"\",\"tie\"),\"\")","v":""}]
[null,null,null,null,null,null,null,null,null,null,null,null,null,null,{"$f":"IF((M23=M22),IF((M23=0),\"\",\"tie\"),\"\")","v":""}]
[]
[]
[]
[]
[]
[]
[]
[]
[]
[]
[]
[]
[]
[]
[]
[]
["Hakusarkkeet",null,2,null,5,null,12,null,14,null,21,null,22]

{"sheet":"FinaaliPP","index":8,"n_rows":40,"n_cols":10,"rows_kept":40,"cut":false,"hidden":false,"merged":[[0,6,0,7],[1,0,1,2],[12,6,12,7],[13,0,13,2],[0,4,0,5],[12,4,12,5]]}
[{"$f":"Asetukset!C21","v":1},{"$f":"kuka1","v":40},{"$f":"IF($B1<=0,\"\",VLOOKUP($B1,Puomi,C$40,FALSE))","v":"Annika Urvikko"},null,{"$f":"IF($B1<=0,\"\",VLOOKUP($B1,Puomi,E$40,FALSE))","v":0},{"$f":"IF($B1<=0,\"\",VLOOKUP($B1,permanto,F$40,FALSE))","v":{"$error":"#VALUE!"}},{"$f":"IF($B1<=0,\"\",VLOOKUP($B1,Puomi,G$40,FALSE))","v":0},{"$f":"IF($B1<=0,\"\",VLOOKUP($B1,permanto,H$40,FALSE))","v":{"$error":"#VALUE!"}}]
["Puomi",null,null,null,null,null,null,""]
[0,"Nr","Nimi","Seura","D","E","väh","Yhteensä"]
[1,{"$f":"PuomiT!B5","v":36},{"$f":"PuomiT!C5","v":"Erika Pakkala"},{"$f":"VLOOKUP(B4,nimilista,6,FALSE)","v":"STVK"},{"$f":"PuomiT!E5","v":0},{"$f":"PuomiT!F5","v":""},{"$f":"PuomiT!G5","v":0},{"$f":"PuomiT!H5","v":0},null,{"$f":"IF((H4=H3),IF((H4=0),\"\",\"tie\"),\"\")","v":""}]
[2,{"$f":"PuomiT!B6","v":40},{"$f":"PuomiT!C6","v":"Annika Urvikko"},"TV",{"$f":"PuomiT!E6","v":0},{"$f":"PuomiT!F6","v":""},{"$f":"PuomiT!G6","v":0},{"$f":"PuomiT!H6","v":0},null,""]
[3,{"$f":"PuomiT!B7","v":41},{"$f":"PuomiT!C7","v":"Emmiina Sulkanen"},"TV",{"$f":"PuomiT!E7","v":0},{"$f":"PuomiT!F7","v":""},{"$f":"PuomiT!G7","v":0},{"$f":"PuomiT!H7","v":0},null,""]
[4,{"$f":"PuomiT!B8","v":44},{"$f":"PuomiT!C8","v":"Rosanna Ojala"},"TV",{"$f":"PuomiT!E8","v":0},{"$f":"PuomiT!F8","v":""},{"$f":"PuomiT!G8","v":0},{"$f":"PuomiT!H8","v":0},null,""]
[5,{"$f":"PuomiT!B9","v":45},{"$f":"PuomiT!C9","v":"Viivi Suominen"},"TV",{"$f":"PuomiT!E9","v":0},{"$f":"PuomiT!F9","v":""},{"$f":"PuomiT!G9","v":0},{"$f":"PuomiT!H9","v":0},null,""]
[6,{"$f":"PuomiT!B10","v":52},{"$f":"PuomiT!C10","v":"Mimosa Raitamaa"},"Kieppi",{"$f":"PuomiT!E10","v":0},{"$f":"PuomiT!F10","v":""},{"$f":"PuomiT!G10","v":0},{"$f":"PuomiT!H10","v":0},null,""]
[null,null,null,null,null,null,null,null,null,""]
[null,null,null,null,null,null,null,null,null,""]
[]
[1,{"$f":"kuka2","v":52},{"$f":"IF($B13<=0,\"\",VLOOKUP($B13,permanto,C$40,FALSE))","v":{"$error":"#N/A"}},null,{"$f":"IF($B13<=0,\"\",VLOOKUP($B13,permanto,E$40,FALSE))","v":{"$error":"#N/A"}},{"$f":"IF($B13<=0,\"\",VLOOKUP($B13,hevonen,F$40,FALSE))","v":{"$error":"#VALUE!"}},{"$f":"IF($B13<=0,\"\",VLOOKUP($B13,permanto,G$40,FALSE))","v":{"$error":"#N/A"}},{"$f":"IF($B13<=0,\"\",VLOOKUP($B13,hevonen,H$40,FALSE))","v":{"$error":"#VALUE!"}}]
["Permanto",null,null,null,null,null,null,""]
[0,"Nr","Nimi","Seura","D","E","väh","Yhteensä"]
[1,{"$f":"PermantoT!B5","v":34},{"$f":"PermantoT!C5","v":"Pihla-Maaria Ojala"},{"$f":"VLOOKUP(B16,nimilista,6,FALSE)","v":"OP"},{"$f":"PermantoT!E5","v":0},{"$f":"PermantoT!F5","v":""},{"$f":"PermantoT!G5","v":0},{"$f":"PermantoT!H5","v":0},null,{"$f":"IF((H16=H15),IF((H16=0),\"\",\"tie\"),\"\")","v":""}]
[2,{"$f":"PermantoT!B6","v":36},{"$f":"PermantoT!C6","v":"Erika Pakkala"},"STVK",{"$f":"PermantoT!E6","v":0},{"$f":"PermantoT!F6","v":""},{"$f":"PermantoT!G6","v":0},{"$f":"PermantoT!H6","v":0},null,""]
[3,{"$f":"PermantoT!B7","v":40},{"$f":"PermantoT!C7","v":"Annika Urvikko"},"TV",{"$f":"PermantoT!E7","v":0},{"$f":"PermantoT!F7","v":""},{"$f":"PermantoT!G7","v":0},{"$f":"PermantoT!H7","v":0},null,""]
[4,{"$f":"PermantoT!B8","v":44},{"$f":"PermantoT!C8","v":"Rosanna Ojala"},"TV",{"$f":"PermantoT!E8","v":0},{"$f":"PermantoT!F8","v":""},{"$f":"PermantoT!G8","v":0},{"$f":"PermantoT!H8","v":0},null,""]
[5,{"$f":"PermantoT!B9","v":47},{"$f":"PermantoT!C9","v":"Janette Salmenoja"},"TuUL",{"$f":"PermantoT!E9","v":0},{"$f":"PermantoT!F9","v":""},{"$f":"PermantoT!G9","v":0},{"$f":"PermantoT!H9","v":0},null,""]
[6,{"$f":"PermantoT!B10","v":50},{"$f":"PermantoT!C10","v":"Paula Tiitta"},"VSK-U",{"$f":"PermantoT!E10","v":0},{"$f":"PermantoT!F10","v":""},{"$f":"PermantoT!G10","v":0},{"$f":"PermantoT!H10","v":0},null,""]
[null,null,null,null,null,null,null,null,null,""]
[null,null,null,null,null,null,null,null,null,""]
[]
[]
[]
[]
[]
[]
[]
[]
[]
[]
[]
[]
[]
[]
[]
[]
["Hakusarkkeet",null,2,null,5,null,12]

{"sheet":"FinaaliNR","index":9,"n_rows":40,"n_cols":10,"rows_kept":40,"cut":false,"hidden":false,"merged":[[0,6,0,7],[1,0,1,2],[12,6,12,7],[13,0,13,2],[0,4,0,5],[12,4,12,5]]}
[1,{"$f":"kuka1","v":40},{"$f":"IF($B1<=0,\"\",VLOOKUP($B1,nojapuut,C$40,FALSE))","v":"Annika Urvikko"},null,{"$f":"IF($B1<=0,\"\",VLOOKUP($B1,nojapuut,E$40,FALSE))","v":0},{"$f":"IF($B1<=0,\"\",VLOOKUP($B1,nojapuut,F$40,FALSE))","v":{"$error":"#VALUE!"}},{"$f":"IF($B1<=0,\"\",VLOOKUP($B1,nojapuut,G$40,FALSE))","v":0},{"$f":"IF($B1<=0,\"\",VLOOKUP($B1,nojapuut,H$40,FALSE))","v":{"$error":"#VALUE!"}}]
["Nojapuut",null,null,null,null,null,null,""]
[0,"Nr","Nimi","Seura","D","väh","E","Yhteensä"]
[1,{"$f":"NojapuutT!B5","v":34},{"$f":"NojapuutT!C5","v":"Pihla-Maaria Ojala"},{"$f":"VLOOKUP(B4,nimilista,6,FALSE)","v":"OP"},{"$f":"NojapuutT!E5","v":0},{"$f":"NojapuutT!F5","v":""},{"$f":"NojapuutT!G5","v":0},{"$f":"NojapuutT!H5","v":0},null,{"$f":"IF((H4=H3),IF((H4=0),\"\",\"tie\"),\"\")","v":""}]
[2,{"$f":"NojapuutT!B6","v":36},{"$f":"NojapuutT!C6","v":"Erika Pakkala"},"STVK",{"$f":"NojapuutT!E6","v":0},{"$f":"NojapuutT!F6","v":""},{"$f":"NojapuutT!G6","v":0},{"$f":"NojapuutT!H6","v":0},null,""]
[3,{"$f":"NojapuutT!B7","v":40},{"$f":"NojapuutT!C7","v":"Annika Urvikko"},"TV",{"$f":"NojapuutT!E7","v":0},{"$f":"NojapuutT!F7","v":""},{"$f":"NojapuutT!G7","v":0},{"$f":"NojapuutT!H7","v":0},null,""]
[4,{"$f":"NojapuutT!B8","v":44},{"$f":"NojapuutT!C8","v":"Rosanna Ojala"},"TV",{"$f":"NojapuutT!E8","v":0},{"$f":"NojapuutT!F8","v":""},{"$f":"NojapuutT!G8","v":0},{"$f":"NojapuutT!H8","v":0},null,""]
[5,{"$f":"NojapuutT!B9","v":51},{"$f":"NojapuutT!C9","v":"Inna Nyyssönen"},"Kieppi",{"$f":"NojapuutT!E9","v":0},{"$f":"NojapuutT!F9","v":""},{"$f":"NojapuutT!G9","v":0},{"$f":"NojapuutT!H9","v":0},null,""]
[6,{"$f":"NojapuutT!B10","v":52},{"$f":"NojapuutT!C10","v":"Mimosa Raitamaa"},"Kieppi",{"$f":"NojapuutT!E10","v":0},{"$f":"NojapuutT!F10","v":""},{"$f":"NojapuutT!G10","v":0},{"$f":"NojapuutT!H10","v":0},null,""]
[7,{"$f":"NojapuutT!#REF!","v":{"$error":"#REF!"}},{"$f":"NojapuutT!#REF!","v":{"$error":"#REF!"}},{"$error":"#REF!"},{"$f":"NojapuutT!#REF!","v":{"$error":"#REF!"}},{"$f":"NojapuutT!#REF!","v":{"$error":"#REF!"}},{"$f":"NojapuutT!#REF!","v":{"$error":"#REF!"}},{"$f":"NojapuutT!#REF!","v":{"$error":"#REF!"}},null,{"$error":"#REF!"}]
[8,{"$f":"NojapuutT!#REF!","v":{"$error":"#REF!"}},{"$f":"NojapuutT!#REF!","v":{"$error":"#REF!"}},{"$error":"#REF!"},{"$f":"NojapuutT!#REF!","v":{"$error":"#REF!"}},{"$f":"NojapuutT!#REF!","v":{"$error":"#REF!"}},{"$f":"NojapuutT!#REF!","v":{"$error":"#REF!"}},{"$f":"NojapuutT!#REF!","v":{"$error":"#REF!"}},null,{"$error":"#REF!"}]
[]
[1,{"$f":"kuka1","v":40},{"$f":"IF($B13<=0,\"\",VLOOKUP($B13,rekki,C$40,FALSE))","v":"Annika Urvikko"},null,{"$f":"IF($B13<=0,\"\",VLOOKUP($B13,rekki,E$40,FALSE))","v":0},{"$f":"IF($B13<=0,\"\",VLOOKUP($B13,rekki,F$40,FALSE))","v":{"$error":"#VALUE!"}},{"$f":"IF($B13<=0,\"\",VLOOKUP($B13,rekki,G$40,FALSE))","v":0},{"$f":"IF($B13<=0,\"\",VLOOKUP($B13,rekki,H$40,FALSE))","v":{"$error":"#VALUE!"}}]
["Rekki",null,null,null,null,null,null,""]
[0,"Nr","Nimi","Seura","D","väh","E","Yhteensä"]
[1,{"$f":"RekkiT!B5","v":30},{"$f":"RekkiT!C5","v":"Emilia Nevalainen"},{"$f":"VLOOKUP(B16,nimilista,6,FALSE)","v":"AS"},{"$f":"RekkiT!E5","v":0},{"$f":"RekkiT!F5","v":0},{"$f":"RekkiT!G5","v":""},{"$f":"RekkiT!H5","v":0},null,{"$f":"IF((H16=H15),IF((H16=0),\"\",\"tie\"),\"\")","v":""}]
[2,{"$f":"RekkiT!B6","v":31},{"$f":"RekkiT!C6","v":"Mari Kuoppala"},"OP",{"$f":"RekkiT!E6","v":0},{"$f":"RekkiT!F6","v":0},{"$f":"RekkiT!G6","v":""},{"$f":"RekkiT!H6","v":0},null,""]
[3,{"$f":"RekkiT!B7","v":32},{"$f":"RekkiT!C7","v":"Meri-Tuuli Himanen"},"OP",{"$f":"RekkiT!E7","v":0},{"$f":"RekkiT!F7","v":0},{"$f":"RekkiT!G7","v":""},{"$f":"RekkiT!H7","v":0},null,""]
[4,{"$f":"RekkiT!B8","v":33},{"$f":"RekkiT!C8","v":"Milja Pulkkinen"},"OP",{"$f":"RekkiT!E8","v":0},{"$f":"RekkiT!F8","v":0},{"$f":"RekkiT!G8","v":""},{"$f":"RekkiT!H8","v":0},null,""]
[5,{"$f":"RekkiT!B9","v":34},{"$f":"RekkiT!C9","v":"Pihla-Maaria Ojala"},"OP",{"$f":"RekkiT!E9","v":0},{"$f":"RekkiT!F9","v":0},{"$f":"RekkiT!G9","v":""},{"$f":"RekkiT!H9","v":0},null,""]
[6,{"$f":"RekkiT!B10","v":35},{"$f":"RekkiT!C10","v":"Sofia Pulkkinen"},"OP",{"$f":"RekkiT!E10","v":0},{"$f":"RekkiT!F10","v":0},{"$f":"RekkiT!G10","v":""},{"$f":"RekkiT!H10","v":0},null,""]
[7,{"$f":"RekkiT!B11","v":36},{"$f":"RekkiT!C11","v":"Erika Pakkala"},"STVK",{"$f":"RekkiT!E11","v":0},{"$f":"RekkiT!F11","v":0},{"$f":"RekkiT!G11","v":""},{"$f":"RekkiT!H11","v":0},null,""]
[8,{"$f":"RekkiT!B12","v":37},{"$f":"RekkiT!C12","v":"Nea Räsänen"},"STVK",{"$f":"RekkiT!E12","v":0},{"$f":"RekkiT!F12","v":0},{"$f":"RekkiT!G12","v":""},{"$f":"RekkiT!H12","v":0},null,""]
[]
[]
[]
[]
[]
[]
[]
[]
[]
[]
[]
[]
[]
[]
[]
[]
["Hakusarkkeet",null,2,null,5,null,12]

{"sheet":"HyppyT","index":10,"n_rows":26,"n_cols":15,"rows_kept":26,"cut":false,"hidden":false,"merged":[[1,14,1,15],[2,0,2,2],[0,3,0,7],[1,6,1,7],[1,10,1,11],[1,12,1,13]]}
[null,null,null,{"$f":"Tulostus!D1","v":"Suomen                            mestaruuskilpailut            Jyväskylä 17.4.2011"}]
[null,null,null,null,null,null,1,null,null,null,2]
["Hyppy",null,null,{"$f":"tulosotsikko","v":"Tytöt,karsinta"},5,11,10,12,14,20,19,21]
["sij","Nr","Nimi","Seura","D","E","väh","Yhteensä","D","E","väh","Yhteensä","Tulos"]
[1,34,{"$f":"VLOOKUP($B5,nimilista,2,FALSE)","v":"Pihla-Maaria Ojala"},{"$f":"VLOOKUP($B5,nimilista,5,FALSE)","v":"Oulun Pyrintö"},{"$f":"VLOOKUP($B5,hyppy,E$3,FALSE)","v":0},"",0,0,0,"",0,0,{"$f":"(H5+L5)/2","v":0},null,{"$f":"IF((M5=M4),IF((M5=0),\"\",\"tie\"),\"\")","v":""}]
[2,36,"Erika Pakkala","Suomen Taitovoimistelu Klubi",0,"",0,0,0,"",0,0,0,null,""]
[3,40,"Annika Urvikko","Tampereen Voimistelijat",2,9,0,11,0,"",0,0,5.5,null,""]
[4,44,"Rosanna Ojala","Tampereen Voimistelijat",0,"",0,0,0,"",0,0,0,null,""]
[5,48,"Roosa Rantanen","Turun Urheiluliitto",0,"",0,0,0,"",0,0,0,null,""]
[6,50,"Paula Tiitta","Voimisteluseura Keski-Uusimaa",0,"",0,0,0,"",0,0,0,null,""]
[]
[]
[]
[]
[]
[]
[]
[]
[]
[]
[]
[]
[]
[]
[null,null,null,null,null,null,null,null,null,{"$f":"IF((H25=H24),IF((H25=0),\"\",\"tie\"),\"\")","v":""}]
[null,null,null,null,null,null,null,null,null,{"$f":"IF((H26=H25),IF((H26=0),\"\",\"tie\"),\"\")","v":""}]

{"sheet":"NojapuutT","index":11,"n_rows":26,"n_cols":10,"rows_kept":26,"cut":false,"hidden":false,"merged":[[1,6,1,7],[2,0,2,2]]}
[null,null,null,{"$f":"Tulostus!D1","v":"Suomen                            mestaruuskilpailut            Jyväskylä 17.4.2011"}]
[]
["Eritasonojapuut",null,null,{"$f":"tulosotsikko","v":"Tytöt,karsinta"},5,11,10,12]
[0,"Nr","Nimi","Seura","D","E","väh","Yhteensä"]
[1,34,{"$f":"VLOOKUP($B5,nimilista,2,FALSE)","v":"Pihla-Maaria Ojala"},{"$f":"VLOOKUP($B5,nimilista,5,FALSE)","v":"Oulun Pyrintö"},{"$f":"VLOOKUP($B5,nojapuut,E$3,FALSE)","v":0},"",0,0,null,{"$f":"IF((H5=H4),IF((H5=0),\"\",\"tie\"),\"\")","v":""}]
[2,36,"Erika Pakkala","Suomen Taitovoimistelu Klubi",0,"",0,0,null,""]
[3,40,"Annika Urvikko","Tampereen Voimistelijat",0,"",0,0,null,""]
[4,44,"Rosanna Ojala","Tampereen Voimistelijat",0,"",0,0,null,""]
[5,51,"Inna Nyyssönen","Voimisteluseura Kieppi",0,"",0,0,null,""]
[6,52,"Mimosa Raitamaa","Voimisteluseura Kieppi",0,"",0,0,null,""]
[]
[null,null,null,null,null,null,null,null,null,""]
[null,null,null,null,null,null,null,null,null,""]
[null,null,null,null,null,null,null,null,null,""]
[null,null,null,null,null,null,null,null,null,""]
[null,null,null,null,null,null,null,null,null,""]
[null,null,null,null,null,null,null,null,null,""]
[null,null,null,null,null,null,null,null,null,""]
[null,null,null,null,null,null,null,null,null,""]
[null,null,null,null,null,null,null,null,null,""]
[null,null,null,null,null,null,null,null,null,""]
[null,null,null,null,null,null,null,null,null,""]
[null,null,null,null,null,null,null,null,null,""]
[null,null,null,null,null,null,null,null,null,""]
[null,null,null,null,null,null,null,null,null,""]
[null,null,null,null,null,null,null,null,null,""]

{"sheet":"PuomiT","index":12,"n_rows":26,"n_cols":10,"rows_kept":26,"cut":false,"hidden":false,"merged":[[1,6,1,7],[2,0,2,2]]}
[null,null,null,{"$f":"Tulostus!D1","v":"Suomen                            mestaruuskilpailut            Jyväskylä 17.4.2011"}]
[]
["Puomi",null,null,{"$f":"tulosotsikko","v":"Tytöt,karsinta"},5,11,10,12]
[0,"Nr","Nimi","Seura","D","E","väh","Yhteensä"]
[1,36,{"$f":"VLOOKUP($B5,nimilista,2,FALSE)","v":"Erika Pakkala"},{"$f":"VLOOKUP($B5,nimilista,5,FALSE)","v":"Suomen Taitovoimistelu Klubi"},{"$f":"VLOOKUP($B5,Puomi,E$3,FALSE)","v":0},"",0,0,null,{"$f":"IF((H5=H4),IF((H5=0),\"\",\"tie\"),\"\")","v":""}]
[2,40,"Annika Urvikko","Tampereen Voimistelijat",0,"",0,0,null,""]
[3,41,"Emmiina Sulkanen","Tampereen Voimistelijat",0,"",0,0,null,""]
[4,44,"Rosanna Ojala","Tampereen Voimistelijat",0,"",0,0,null,""]
[5,45,"Viivi Suominen","Tampereen Voimistelijat",0,"",0,0,null,""]
[6,52,"Mimosa Raitamaa","Voimisteluseura Kieppi",0,"",0,0,null,""]
[]
[null,null,null,null,null,null,null,null,null,""]
[null,null,null,null,null,null,null,null,null,""]
[null,null,null,null,null,null,null,null,null,""]
[null,null,null,null,null,null,null,null,null,""]
[null,null,null,null,null,null,null,null,null,""]
[null,null,null,null,null,null,null,null,null,""]
[null,null,null,null,null,null,null,null,null,""]
[null,null,null,null,null,null,null,null,null,""]
[null,null,null,null,null,null,null,null,null,""]
[null,null,null,null,null,null,null,null,null,""]
[null,null,null,null,null,null,null,null,null,""]
[null,null,null,null,null,null,null,null,null,""]
[null,null,null,null,null,null,null,null,null,""]
[null,null,null,null,null,null,null,null,null,""]
[null,null,null,null,null,null,null,null,null,""]

{"sheet":"PermantoT","index":13,"n_rows":10,"n_cols":10,"rows_kept":10,"cut":false,"hidden":false,"merged":[[1,6,1,7],[1,10,1,11],[1,14,1,15],[2,0,2,2]]}
[null,null,null,{"$f":"Tulostus!D1","v":"Suomen                            mestaruuskilpailut            Jyväskylä 17.4.2011"}]
[]
["Permanto",null,null,{"$f":"tulosotsikko","v":"Tytöt,karsinta"},5,11,10,12]
[0,"Nr","Nimi","Seura","D","E","väh","Yhteensä"]
[1,34,{"$f":"VLOOKUP($B5,nimilista,2,FALSE)","v":"Pihla-Maaria Ojala"},{"$f":"VLOOKUP($B5,nimilista,5,FALSE)","v":"Oulun Pyrintö"},{"$f":"VLOOKUP($B5,permanto,E$3,FALSE)","v":0},"",0,0,null,{"$f":"IF((H5=H4),IF((H5=0),\"\",\"tie\"),\"\")","v":""}]
[2,36,"Erika Pakkala","Suomen Taitovoimistelu Klubi",0,"",0,0,null,""]
[3,40,"Annika Urvikko","Tampereen Voimistelijat",0,"",0,0,null,""]
[4,44,"Rosanna Ojala","Tampereen Voimistelijat",0,"",0,0,null,""]
[5,47,"Janette Salmenoja","Turun Urheiluliitto",0,"",0,0,null,""]
[6,50,"Paula Tiitta","Voimisteluseura Keski-Uusimaa",0,"",0,0,null,""]

{"sheet":"RekkiT","index":14,"n_rows":52,"n_cols":10,"rows_kept":52,"cut":false,"hidden":false,"merged":[[1,6,1,7],[2,0,2,2]]}
[null,null,null,{"$f":"Tulostus!D1","v":"Suomen                            mestaruuskilpailut            Jyväskylä 17.4.2011"}]
[]
["Rekki",null,null,{"$f":"tulosotsikko","v":"Tytöt,karsinta"},5,10,11,12]
[0,"Nr","Nimi","Seura","D","väh","E","Yhteensä"]
[1,30,{"$f":"VLOOKUP($B5,nimilista,2,FALSE)","v":"Emilia Nevalainen"},{"$f":"VLOOKUP($B5,nimilista,5,FALSE)","v":"Alppilan Salamat"},{"$f":"VLOOKUP($B5,rekki,E$3,FALSE)","v":0},0,"",0,null,{"$f":"IF((H5=H4),IF((H5=0),\"\",\"tie\"),\"\")","v":""}]
[2,31,"Mari Kuoppala","Oulun Pyrintö",0,0,"",0,null,""]
[3,32,"Meri-Tuuli Himanen","Oulun Pyrintö",0,0,"",0,null,""]
[4,33,"Milja Pulkkinen","Oulun Pyrintö",0,0,"",0,null,""]
[5,34,"Pihla-Maaria Ojala","Oulun Pyrintö",0,0,"",0,null,""]
[6,35,"Sofia Pulkkinen","Oulun Pyrintö",0,0,"",0,null,""]
[7,36,"Erika Pakkala","Suomen Taitovoimistelu Klubi",0,0,"",0,null,""]
[8,37,"Nea Räsänen","Suomen Taitovoimistelu Klubi",0,0,"",0,null,""]
[9,38,"Sara Pakkanen","Suomen Taitovoimistelu Klubi",0,0,"",0,null,""]
[10,39,"Seidi Kauppi","Suomen Taitovoimistelu Klubi",0,0,"",0,null,""]
[11,40,"Annika Urvikko","Tampereen Voimistelijat",0,0,"",0,null,""]
[12,41,"Emmiina Sulkanen","Tampereen Voimistelijat",0,0,"",0,null,""]
[13,42,"Katya Attard","Tampereen Voimistelijat",0,0,"",0,null,""]
[14,43,"Maria Kekki","Tampereen Voimistelijat",0,0,"",0,null,""]
[15,44,"Rosanna Ojala","Tampereen Voimistelijat",0,0,"",0,null,""]
[16,45,"Viivi Suominen","Tampereen Voimistelijat",0,0,"",0,null,""]
[17,46,"Sannamari Lähde","Turun Pyrkivä",0,0,"",0,null,""]
[18,47,"Janette Salmenoja","Turun Urheiluliitto",0,0,"",0,null,""]
[19,48,"Roosa Rantanen","Turun Urheiluliitto",0,0,"",0,null,""]
[20,49,"Tuulia Räisänen","Vaasan Telinetaiturit",0,0,"",0,null,""]
[21,50,"Paula Tiitta","Voimisteluseura Keski-Uusimaa",0,0,"",0,null,""]
[22,51,"Inna Nyyssönen","Voimisteluseura Kieppi",0,0,"",0,null,""]
[23,52,"Mimosa Raitamaa","Voimisteluseura Kieppi",0,0,"",0,null,""]
[]
[]
[]
[]
[]
[]
[]
[]
[]
[]
[null,null,null,null,null,null,null,null,null,""]
[null,null,null,null,null,null,null,null,null,""]
[null,null,null,null,null,null,null,null,null,""]
[null,null,null,null,null,null,null,null,null,""]
[null,null,null,null,null,null,null,null,null,""]
[null,null,null,null,null,null,null,null,null,""]
[null,null,null,null,null,null,null,null,null,""]
[null,null,null,null,null,null,null,null,null,""]
[null,null,null,null,null,null,null,null,null,""]
[null,null,null,null,null,null,null,null,null,""]
[null,null,null,null,null,null,null,null,null,""]
[null,null,null,null,null,null,null,null,null,""]
[null,null,null,null,null,null,null,null,null,""]
[null,null,null,null,null,null,null,null,null,""]
[null,null,null,null,null,null,null,null,null,""]

{"sheet":"HevonenT","index":15,"n_rows":52,"n_cols":10,"rows_kept":52,"cut":false,"hidden":false,"merged":[[1,6,1,7],[1,10,1,11],[1,14,1,15],[2,0,2,2]]}
[null,null,null,{"$f":"Tulostus!D1","v":"Suomen                            mestaruuskilpailut            Jyväskylä 17.4.2011"}]
[]
["Hevonen",null,null,{"$f":"tulosotsikko","v":"Tytöt,karsinta"},5,10,11,12]
[0,"Nr","Nimi","Seura","D","väh","E","Yhteensä"]
[1,30,{"$f":"VLOOKUP($B5,nimilista,2,FALSE)","v":"Emilia Nevalainen"},{"$f":"VLOOKUP($B5,nimilista,5,FALSE)","v":"Alppilan Salamat"},{"$f":"VLOOKUP($B5,hevonen,E$3,FALSE)","v":0},0,"",0,null,{"$f":"IF((H5=H4),IF((H5=0),\"\",\"tie\"),\"\")","v":""}]
[2,31,"Mari Kuoppala","Oulun Pyrintö",0,0,"",0,null,""]
[3,32,"Meri-Tuuli Himanen","Oulun Pyrintö",0,0,"",0,null,""]
[4,33,"Milja Pulkkinen","Oulun Pyrintö",0,0,"",0,null,""]
[5,34,"Pihla-Maaria Ojala","Oulun Pyrintö",0,0,"",0,null,""]
[6,35,"Sofia Pulkkinen","Oulun Pyrintö",0,0,"",0,null,""]
[7,36,"Erika Pakkala","Suomen Taitovoimistelu Klubi",0,0,"",0,null,""]
[8,37,"Nea Räsänen","Suomen Taitovoimistelu Klubi",0,0,"",0,null,""]
[9,38,"Sara Pakkanen","Suomen Taitovoimistelu Klubi",0,0,"",0,null,""]
[10,39,"Seidi Kauppi","Suomen Taitovoimistelu Klubi",0,0,"",0,null,""]
[11,40,"Annika Urvikko","Tampereen Voimistelijat",0,0,"",0,null,""]
[12,41,"Emmiina Sulkanen","Tampereen Voimistelijat",0,0,"",0,null,""]
[13,42,"Katya Attard","Tampereen Voimistelijat",0,0,"",0,null,""]
[14,43,"Maria Kekki","Tampereen Voimistelijat",0,0,"",0,null,""]
[15,44,"Rosanna Ojala","Tampereen Voimistelijat",0,0,"",0,null,""]
[16,45,"Viivi Suominen","Tampereen Voimistelijat",0,0,"",0,null,""]
[17,46,"Sannamari Lähde","Turun Pyrkivä",0,0,"",0,null,""]
[18,47,"Janette Salmenoja","Turun Urheiluliitto",0,0,"",0,null,""]
[19,48,"Roosa Rantanen","Turun Urheiluliitto",0,0,"",0,null,""]
[20,49,"Tuulia Räisänen","Vaasan Telinetaiturit",0,0,"",0,null,""]
[21,50,"Paula Tiitta","Voimisteluseura Keski-Uusimaa",0,0,"",0,null,""]
[22,51,"Inna Nyyssönen","Voimisteluseura Kieppi",0,0,"",0,null,""]
[23,52,"Mimosa Raitamaa","Voimisteluseura Kieppi",0,0,"",0,null,""]
[]
[]
[]
[]
[]
[]
[]
[]
[]
[null,null,null,null,null,null,null,null,null,""]
[null,null,null,null,null,null,null,null,null,""]
[null,null,null,null,null,null,null,null,null,""]
[null,null,null,null,null,null,null,null,null,""]
[null,null,null,null,null,null,null,null,null,""]
[null,null,null,null,null,null,null,null,null,""]
[null,null,null,null,null,null,null,null,null,""]
[null,null,null,null,null,null,null,null,null,""]
[null,null,null,null,null,null,null,null,null,""]
[null,null,null,null,null,null,null,null,null,""]
[null,null,null,null,null,null,null,null,null,""]
[null,null,null,null,null,null,null,null,null,""]
[null,null,null,null,null,null,null,null,null,""]
[null,null,null,null,null,null,null,null,null,""]
[null,null,null,null,null,null,null,null,null,""]
[null,null,null,null,null,null,null,null,null,""]

{"sheet":"Asetukset","index":16,"n_rows":282,"n_cols":19,"rows_kept":282,"cut":false,"hidden":false,"merged":[]}
["Tällä sivulla on ohjelman asetuksia"]
["Asetuksen selitys",null,null,"yksikkö","Lisäselitystä"]
["Korostusväri tuloksen näyttämiseksi",null,36]
["Yhteensä perusväri",null,12,null,"#f8cf50","#eeddff"]
["Perusväri 2",null,"#F7CE40"]
["D-sarakkeen malli",null,9,null,"#F7CE40","#ff00ff",null,"R","G","B"]
[null,null,null,null,null,null,null,4,238,254,{"$f":"((\"#\"&DEC2HEX(H7,2))&DEC2HEX(I7,2))&DEC2HEX(J7,2)","v":"#04EEFE"},"#04EEFE"]
["Korostus kun tullaan suoritukseen",null,"Saku",null,null,null,null,234,8,24,{"$f":"((\"#\"&DEC2HEX(H8,2))&DEC2HEX(I8,2))&DEC2HEX(J8,2)","v":"#EA0818"},"#EA0818"]
["Automaattiset asetukset","Asetuksen nimi"]
["Tuloksen näyttöaika isona","tuloksennayttoaikaisona",0,"sek",null,null,null,234,238,4,{"$f":"((\"#\"&DEC2HEX(H10,2))&DEC2HEX(I10,2))&DEC2HEX(J10,2)","v":"#EAEE04"},"#EAEE04"]
["Tuloksen näyttöaika lajittelun jälkeen","tuloksennayttoaikalajittelunjalkeen",0,"sek",null,null,null,4,238,24,{"$f":"((\"#\"&DEC2HEX(H11,2))&DEC2HEX(I11,2))&DEC2HEX(J11,2)","v":"#04EE18"},"#04EE18"]
["Näytetäänkö suorittaja otsikossa","suorittajaOtsikossa",1,null,null,null,null,255,154,206,{"$f":"((\"#\"&DEC2HEX(H12,2))&DEC2HEX(I12,2))&DEC2HEX(J12,2)","v":"#FF9ACE"}]
["Näytä suorittaja taulukossa","suorittajaTaulukossa",1]
["Näytetäänkö finaaliin menijät","naytaFinaaliinMenijat",1]
["Kilpailijoita","kilpailijoidenMaara",{"$f":"COUNTA(Tulokset!C5:C35)","v":23}]
["Finaalissa kilpailijoita","kilpailijoidenMaaraFinaalissa",8]
["Finaali","isFinal",0,null,"Tähän 1 jos on finaali"]
["Viivoita tausta","viivoitaTausta",1,null,"Tähän 1 jos halutaan värjätä tausta joka toinen eri värillä"]
["Lomakkeen korkeus","appHeight",390]
["Lomakkeen leveys","appWidth",340]
["Mikä laji suorituspaikalla 1","teline1",1,null,"vaihda näitä kunlaji vaihtuu, myös kuvat",{"$f":"INDEX(lajit,teline1,1)","v":"Hyppy"},{"$f":"INDEX(lajit,teline1,3)","v":"PermantoI"}]
["Mikä laji suorituspaikalla 2","teline2",2,null,"vaihda näitä kunlaji vaihtuu, myös kuvat",{"$f":"INDEX(lajit,teline2,1)","v":"Nojapuut"},{"$f":"INDEX(lajit,teline2,3)","v":"HevonenI"}]
["Kuka suorituspaikalla 1","kuka1",{"$f":"INDIRECT(\"\"&F21&\"!E1\")","v":40}]
["Kuka suorituspaikalla 2","kuka2",{"$f":"INDIRECT(\"\"&F22&\"!E1\")","v":52}]
["Tulostusotsikko","tulosotsikko","Tytöt,karsinta"]
[]
[]
["Muita asetuksia"]
["Kuvatiedoston nimen alku",null,"http://users.jyu.fi/~vesal/kurssit/excel/tuloslaskenta/logot/"]
["Kuvatiedoston nimen loppu",null,"_p.png"]
[null,null,null,null,null,"",""]
["Lajiteltavat","Lajit","Sivu","Viimeinen sarake",null,"Lajit"]
[null,null,"Tulostus","Q",1,"Hyppy",null,"PermantoI"]
[null,null,"HyppyT","M",2,"Nojapuut",null,"HevonenI"]
[null,null,"PermantoT","H",3,"Puomi",null,"RenkaatI"]
[null,null,"HevonenT","H",4,"Permanto",null,"HyppyI"]
[null,null,"RenkaatT","H",5,"Permanto",null,"NojapuutI"]
[null,null,"NojapuutT","H",6,"Rekki",null,"RekkiI"]
[null,null,"RekkiT","H",7,"Puomi",null,"PuomiI"]
[null,null,null,null,8,"Eritasonojapuut",null,"EritasonojapuutI"]
[]
[]
["Suorituspaikat",null,"Teline","Paikka"]
["Miehet",null,"Permanto",1]
[null,null,"Hevonen",2]
[null,null,"Renkaat",1]
[null,null,"Hyppy",2]
[null,null,"Nojapuut",1]
[null,null,"Rekki",2]
[]
["Naiset",null,"Hyppy",1]
[null,null,"Eritasonojapuut",2]
[null,null,"Puomi",1]
[null,null,"Permanto",2]
[]
[]
[]
[]
["Nimetyt alueet"]
[]
[]
[]
[]
[]
[]
[]
[]
[]
[]
[null,"Nimetyt alueet"]
[null,"suorittajaOtsikossa","Asetukset!C11"]
[null,"kuvaalku","Asetukset!C21"]
[null,"finaalissaKilpailijoita","Asetukset!C15"]
[null,"finaali","Asetukset!C17"]
[null,"kaavaAlue","Tulokset!E5:P34"]
[null,"korostusvari","Asetukset!C3"]
[null,"tuloksenTaustavari","Asetukset!C4"]
[null,"kilpailijoita","Asetukset!C14"]
[null,"naytaFinaaliinMenijat","Asetukset!C13"]
[null,"tulosalue","Tulokset!A5:R34"]
[null,"tuloksenTaustavari2","Asetukset!C5"]
[null,"kuvaloppu","Asetukset!C22"]
[null,"DsarakkeenMalli","Asetukset!C6"]
[null,"tuloksennayttoaikaisona","Asetukset!C9"]
[null,"suorituskorostus","Asetukset!C8"]
[null,"tuloksennayttoaikalajittelunjalkeen","Asetukset!C10"]
[null,"viivoitaTausta","Asetukset!C18"]
[null,"suorittajaTaulukossa","Asetukset!C12"]
[null,"appHeight","Asetukset!C19"]
[null,"appWidth","Asetukset!C20"]
[]
[]
[]
[]
[]
[]
[]
[]
[]
[]
[]
[]
[]
[]
[]
[]
[]
[]
[]
[]
[]
[]
[]
[]
[]
[]
[]
[]
[]
[]
[]
[]
[]
[]
[]
[]
[]
[]
[]
[]
[]
[]
[]
[]
[" "]
["riviä loppuun."]
[" "]
[1]
["Asetuksen selitys==="]
[]
["==="]
["Asetuksen selitys"]
[35]
[null,"palauta loppu"]
[5]
[null,1,2,"Sami Salo","STV",3,11.15,6,15.75,4,10.6,2,10,1,9,4.9000000000000004,13.95,70.45,0]
[6]
[null,2,8,"Teemu Selänne","HTV",3,12,4,7,2,11,4,13,3,12,5,14.55,69.55,-0.9]
[7]
[null,3,4,"Ossi Väänänen","KTV",5,12.85,2,11,4,13,2,10,1.2,10.1,2,10.5,67.45,-3]
[8]
[null,4,1,"Kari Lehtonen","HTV",3,7.5,1,10,2,11,1,10,5.2,13.9,52.4,-18.05]
[9]
[null,5,10,"Toni Rajala","HTV",6,15,1,10,3,10,3,12,3,12,59,-11.45]
[10]
[null,6,22,"Ville Leino","STV",2.2000000000000002,10.55,2,11,3,12,6.2,15,1,10,58.55,-11.9]
[11]
[null,7,3,"Antti Jaatinen","KTV",1.7,10.050000000000001,3,11,1,10,3.2,12.25,43.3,-27.15]
[12]
[null,8,11,"Saku Koivu","HTV",4,12,2,9,4,13,1,8,42,-28.45]
[13]
[null,9,12,"Jani Tuppurainen","Jyvo",2,10.4,1,9.9,1,9,1,10,39.299999999999997,-31.15]
[14]
[null,10,15,"Juha-Pekka Hytönen","Jyvo",2,10.35,2,8.75,1,10,1,9,38.1,-32.35]
[15]
[null,11,6,"Teemu Pulkkinen","TTV",5,13.35,2,11,2,11,35.35,-35.1]
[16]
[null,12,23,"Ossi Louhivaara","Jyvo",1.8,9.8000000000000007,4,11.85,2,11,32.65,-37.799999999999997]
[17]
[null,13,17,"Jari Jääskeläinen","Jyvo",1.8,9.75,2,9.6,4.5,12.75,32.1,-38.35]
[18]
[null,14,14,"Pekka Jormakka","Jyvo",2.4,10.75,1.1000000000000001,8.6,2,10.9,30.25,-40.200000000000003]
[19]
[null,15,16,"Ville Peltonen","HTV",1.7,9.9,2,10.6,1,9,29.5,-40.950000000000003]
[20]
[null,16,29,"Petteri Nokelainen","KTV",2.6,11.15,1,9.9,21.05,-49.4]
[21]
[null,17,21,"Teemu Eronen","HTV",1.8,9.8000000000000007,2,11,20.8,-49.65]
[22]
[null,18,27,"Juha Lind","STV",2.2000000000000002,10.15,1,9,19.149999999999999,-51.3]
[23]
[null,19,41,"Antti Pihlström","Jyvo",1.8,5,14,14,-56.45]
[24]
[null,20,40,"Sami Lepistö","KTV",2.6,1,11,11,-59.45]
[25]
[null,21,36,"Marko Tuulola","KTV",2.9,2,11,11,-59.45]
[26]
[null,22,58,"Nico Manelius","KTV",2.2999999999999998,2,11,11,-59.45]
[27]
[null,23,50,"Tommi Kivistö","KTV",2.1,2,11,11,-59.45]
[28]
[null,24,28,"Jani Rita","HYV",2.2000000000000002,10.5,10.5,-59.95]
[29]
[null,25,25,"Jukka Hentunen","HTV",1.7,9.9499999999999993,9.9499999999999993,-60.5]
[30]
[null,26,35,"Mika Järvinen","KTV",2.6,1,9.9,9.9,-60.55]
[31]
[null,27,44,"Sami Vatanen","Jyvo",1.6,0,-70.45]
[32]
[null,28,47,"Janne Lahti","Jyvo",2,0,-70.45]
[33]
[null,29,49,"Tuomas Pihlman","Jokerit",2.2000000000000002,0,-70.45]
[34]
[null,30,64,"Mikael Granlund","HIFK",2.6,0,-70.45]
[35]
[null,"palauta loppu"]
[10]
[null,"Tuloksen näyttöaika lajittelun jälkeen","tuloksennayttoaikalajittelunjalkeen",0,"sek",4,238,24,"#04EE18","#04EE18"]
[35]
[null,"palauta loppu"]
[35]
[null,"palauta loppu"]
[1]
[null,8,"Teemu Selänne","HTV",3,12]
[2]
[null,"Permanto"]
[3]
[null,0,"Nr","Nimi","Seura","D","väh","E","Yhteensä"]
[4]
[null,1,10,"Toni Rajala",3,0,9,12]
[5]
[null,2,8,"Teemu Selänne",3,0,9,12]
[6]
[null,3,11,"Saku Koivu",4,1,9,12]
[7]
[null,4,22,"Ville Leino",2.2000000000000002,0.4,8.75,10.55]
[8]
[null,5,1,"Kari Lehtonen"]
[9]
[null,6,12,"Jani Tuppurainen"]
[10]
[null,7,2,"Sami Salo"]
[11]
[null,8,15,"Juha-Pekka Hytönen"]
[13]
[null,2,"Sami Salo","STV",6,15.75]
[14]
[null,"Hevonen"]
[15]
[null,0,"Nr","Nimi","Seura","D","väh","E","Yhteensä"]
[16]
[null,1,2,"Sami Salo",6,0,9.75,15.75]
[17]
[null,2,22,"Ville Leino",2,0,9,11]
[18]
[null,3,10,"Toni Rajala",1,0,9,10]
[19]
[null,4,1,"Kari Lehtonen",1,0,9,10,"tie"]
[20]
[null,5,12,"Jani Tuppurainen"]
[21]
[null,6,11,"Saku Koivu"]
[22]
[null,7,8,"Teemu Selänne"]
[23]
[null,8,15,"Juha-Pekka Hytönen"]
[35]
[null,"palauta loppu"]
[34]
[null,6056]
["Alueen nimet"]
["Lempinimi:","Ohje"]
[null,null,"×"]
[null,null,"×"]
[null,null,"×"]
[null,null,"×"]
[null,null,"×"]
[null,null,"×"]
[null,null,"×"]
[null,null,"×"]
[null,null,"×"]
[null,null,"×"]
[null,null,"×"]
[null,null,"×"]
[null,null,"×"]
[null,null,"×"]
[null,null,"×"]
[null,null,"×"]
[null,null,"×"]
[null,null,"×"]
[null,null,"×"]
[null,null,"×"]

{"sheet":"Tulostus","index":17,"n_rows":27,"n_cols":13,"rows_kept":27,"cut":false,"hidden":false,"merged":[[2,0,2,2],[0,3,0,7]]}
[null,null,null,"Suomen                            mestaruuskilpailut            Jyväskylä 17.4.2011"]
[]
["Naisten 4-ottelu",null,null,null,"Permanto",{"$f":"Permanto!$M$1","v":""},"Hevonen",{"$f":"Hevonen!$M$1","v":""},"Renkaat",{"$f":"Puomi!$M$1","v":""},"Rekki",{"$f":"Rekki!$M$1","v":""}]
[0,"Nr","Nimi","Seura","D","yht","D","yht","D","yht","D","yht","Yhteensä"]
[1,30,{"$f":"VLOOKUP($B5,nimilista,2,FALSE)","v":"Emilia Nevalainen"},{"$f":"VLOOKUP($B5,nimilista,5,FALSE)","v":"Alppilan Salamat"},{"$f":"VLOOKUP($B5,hyppy,5,FALSE)","v":{"$error":"#N/A"}},{"$f":"VLOOKUP($B5,hyppy,12,FALSE)","v":{"$error":"#N/A"}},{"$f":"VLOOKUP($B5,nojapuut,5,FALSE)","v":{"$error":"#N/A"}},{"$f":"VLOOKUP($B5,nojapuut,12,FALSE)","v":{"$error":"#N/A"}},{"$f":"VLOOKUP($B5,Puomi,5,FALSE)","v":{"$error":"#N/A"}},{"$f":"VLOOKUP($B5,Puomi,12,FALSE)","v":{"$error":"#N/A"}},{"$f":"VLOOKUP($B5,permanto,5,FALSE)","v":{"$error":"#N/A"}},{"$f":"VLOOKUP($B5,permanto,12,FALSE)","v":{"$error":"#N/A"}},{"$f":"F5+H5+J5+L5","v":{"$error":"#N/A"}}]
[2,31,"Mari Kuoppala","Oulun Pyrintö",{"$error":"#N/A"},{"$error":"#N/A"},{"$error":"#N/A"},{"$error":"#N/A"},{"$error":"#N/A"},{"$error":"#N/A"},{"$error":"#N/A"},{"$error":"#N/A"},{"$error":"#N/A"}]
[3,32,"Meri-Tuuli Himanen","Oulun Pyrintö",{"$error":"#N/A"},{"$error":"#N/A"},{"$error":"#N/A"},{"$error":"#N/A"},{"$error":"#N/A"},{"$error":"#N/A"},{"$error":"#N/A"},{"$error":"#N/A"},{"$error":"#N/A"}]
[4,33,"Milja Pulkkinen","Oulun Pyrintö",{"$error":"#N/A"},{"$error":"#N/A"},{"$error":"#N/A"},{"$error":"#N/A"},{"$error":"#N/A"},{"$error":"#N/A"},{"$error":"#N/A"},{"$error":"#N/A"},{"$error":"#N/A"}]
[5,34,"Pihla-Maaria Ojala","Oulun Pyrintö",0,0,0,0,{"$error":"#N/A"},{"$error":"#N/A"},0,0,{"$error":"#N/A"}]
[6,35,"Sofia Pulkkinen","Oulun Pyrintö",{"$error":"#N/A"},{"$error":"#N/A"},{"$error":"#N/A"},{"$error":"#N/A"},{"$error":"#N/A"},{"$error":"#N/A"},{"$error":"#N/A"},{"$error":"#N/A"},{"$error":"#N/A"}]
[7,36,"Erika Pakkala","Suomen Taitovoimistelu Klubi",0,0,0,0,0,0,0,0,0]
[8,37,"Nea Räsänen","Suomen Taitovoimistelu Klubi",{"$error":"#N/A"},{"$error":"#N/A"},{"$error":"#N/A"},{"$error":"#N/A"},{"$error":"#N/A"},{"$error":"#N/A"},{"$error":"#N/A"},{"$error":"#N/A"},{"$error":"#N/A"}]
[9,38,"Sara Pakkanen","Suomen Taitovoimistelu Klubi",{"$error":"#N/A"},{"$error":"#N/A"},{"$error":"#N/A"},{"$error":"#N/A"},{"$error":"#N/A"},{"$error":"#N/A"},{"$error":"#N/A"},{"$error":"#N/A"},{"$error":"#N/A"}]
[10,39,"Seidi Kauppi","Suomen Taitovoimistelu Klubi",{"$error":"#N/A"},{"$error":"#N/A"},{"$error":"#N/A"},{"$error":"#N/A"},{"$error":"#N/A"},{"$error":"#N/A"},{"$error":"#N/A"},{"$error":"#N/A"},{"$error":"#N/A"}]
[11,40,"Annika Urvikko","Tampereen Voimistelijat",2,11,0,0,0,0,0,0,11]
[12,41,"Emmiina Sulkanen","Tampereen Voimistelijat",{"$error":"#N/A"},{"$error":"#N/A"},{"$error":"#N/A"},{"$error":"#N/A"},0,0,{"$error":"#N/A"},{"$error":"#N/A"},{"$error":"#N/A"}]
[13,42,"Katya Attard","Tampereen Voimistelijat",{"$error":"#N/A"},{"$error":"#N/A"},{"$error":"#N/A"},{"$error":"#N/A"},{"$error":"#N/A"},{"$error":"#N/A"},{"$error":"#N/A"},{"$error":"#N/A"},{"$error":"#N/A"}]
[14,43,"Maria Kekki","Tampereen Voimistelijat",{"$error":"#N/A"},{"$error":"#N/A"},{"$error":"#N/A"},{"$error":"#N/A"},{"$error":"#N/A"},{"$error":"#N/A"},{"$error":"#N/A"},{"$error":"#N/A"},{"$error":"#N/A"}]
[15,44,"Rosanna Ojala","Tampereen Voimistelijat",0,0,0,0,0,0,0,0,0]
[16,45,"Viivi Suominen","Tampereen Voimistelijat",{"$error":"#N/A"},{"$error":"#N/A"},{"$error":"#N/A"},{"$error":"#N/A"},0,0,{"$error":"#N/A"},{"$error":"#N/A"},{"$error":"#N/A"}]
[17,46,"Sannamari Lähde","Turun Pyrkivä",{"$error":"#N/A"},{"$error":"#N/A"},{"$error":"#N/A"},{"$error":"#N/A"},{"$error":"#N/A"},{"$error":"#N/A"},{"$error":"#N/A"},{"$error":"#N/A"},{"$error":"#N/A"}]
[18,47,"Janette Salmenoja","Turun Urheiluliitto",{"$error":"#N/A"},{"$error":"#N/A"},{"$error":"#N/A"},{"$error":"#N/A"},{"$error":"#N/A"},{"$error":"#N/A"},0,0,{"$error":"#N/A"}]
[19,48,"Roosa Rantanen","Turun Urheiluliitto",0,0,{"$error":"#N/A"},{"$error":"#N/A"},{"$error":"#N/A"},{"$error":"#N/A"},{"$error":"#N/A"},{"$error":"#N/A"},{"$error":"#N/A"}]
[20,49,"Tuulia Räisänen","Vaasan Telinetaiturit",{"$error":"#N/A"},{"$error":"#N/A"},{"$error":"#N/A"},{"$error":"#N/A"},{"$error":"#N/A"},{"$error":"#N/A"},{"$error":"#N/A"},{"$error":"#N/A"},{"$error":"#N/A"}]
[21,50,"Paula Tiitta","Voimisteluseura Keski-Uusimaa",0,0,{"$error":"#N/A"},{"$error":"#N/A"},{"$error":"#N/A"},{"$error":"#N/A"},0,0,{"$error":"#N/A"}]
[22,51,"Inna Nyyssönen","Voimisteluseura Kieppi",{"$error":"#N/A"},{"$error":"#N/A"},0,0,{"$error":"#N/A"},{"$error":"#N/A"},{"$error":"#N/A"},{"$error":"#N/A"},{"$error":"#N/A"}]
[23,52,"Mimosa Raitamaa","Voimisteluseura Kieppi",{"$error":"#N/A"},{"$error":"#N/A"},0,0,0,0,{"$error":"#N/A"},{"$error":"#N/A"},{"$error":"#N/A"}]

{"sheet":"Nimilista","index":18,"n_rows":27,"n_cols":8,"rows_kept":27,"cut":false,"hidden":false,"merged":[]}
["Nimilista"]
[]
[]
["Nro","Nimi","Seura","Lyhenne","Tulosseura","Nayttoseura","Lyhennetty nimi","Näyttönimi"]
[30,"Emilia Nevalainen","Alppilan Salamat","AS","Alppilan Salamat","AS","E.Nevalainen","E.Nevalainen"]
[31,"Mari Kuoppala","Oulun Pyrintö","OP","Oulun Pyrintö","OP","M.Kuoppala","M.Kuoppala"]
[32,"Meri-Tuuli Himanen","Oulun Pyrintö","OP","Oulun Pyrintö","OP","M.Himanen","M.Himanen"]
[33,"Milja Pulkkinen","Oulun Pyrintö","OP","Oulun Pyrintö","OP","M.Pulkkinen","M.Pulkkinen"]
[34,"Pihla-Maaria Ojala","Oulun Pyrintö","OP","Oulun Pyrintö","OP","PM.Ojala","PM.Ojala"]
[35,"Sofia Pulkkinen","Oulun Pyrintö","OP","Oulun Pyrintö","OP","S.Pulkkinen","S.Pulkkinen"]
[36,"Erika Pakkala","Suomen Taitovoimistelu Klubi","STVK","Suomen Taitovoimistelu Klubi","STVK","E.Pakkala","E.Pakkala"]
[37,"Nea Räsänen","Suomen Taitovoimistelu Klubi","STVK","Suomen Taitovoimistelu Klubi","STVK","N.Räsänen","N.Räsänen"]
[38,"Sara Pakkanen","Suomen Taitovoimistelu Klubi","STVK","Suomen Taitovoimistelu Klubi","STVK","S.Pakkanen","S.Pakkanen"]
[39,"Seidi Kauppi","Suomen Taitovoimistelu Klubi","STVK","Suomen Taitovoimistelu Klubi","STVK","S.Kauppi","S.Kauppi"]
[40,"Annika Urvikko","Tampereen Voimistelijat","TV","Tampereen Voimistelijat","TV","A.Urvikko","A.Urvikko"]
[41,"Emmiina Sulkanen","Tampereen Voimistelijat","TV","Tampereen Voimistelijat","TV","E.Sulkanen","E.Sulkanen"]
[42,"Katya Attard","Tampereen Voimistelijat","TV","Tampereen Voimistelijat","TV","K.Attard","K.Attard"]
[43,"Maria Kekki","Tampereen Voimistelijat","TV","Tampereen Voimistelijat","TV","M.Kekki","M.Kekki"]
[44,"Rosanna Ojala","Tampereen Voimistelijat","TV","Tampereen Voimistelijat","TV","R.Ojala","R.Ojala"]
[45,"Viivi Suominen","Tampereen Voimistelijat","TV","Tampereen Voimistelijat","TV","V.Suominen","V.Suominen"]
[46,"Sannamari Lähde","Turun Pyrkivä","Tupy","Turun Pyrkivä","Tupy","S.Lähde","S.Lähde"]
[47,"Janette Salmenoja","Turun Urheiluliitto","TuUL","Turun Urheiluliitto","TuUL","J.Salmenoja","J.Salmenoja"]
[48,"Roosa Rantanen","Turun Urheiluliitto","TuUL","Turun Urheiluliitto","TuUL","R.Rantanen","R.Rantanen"]
[49,"Tuulia Räisänen","Vaasan Telinetaiturit","VTT","Vaasan Telinetaiturit","VTT","T.Räisänen","T.Räisänen"]
[50,"Paula Tiitta","Voimisteluseura Keski-Uusimaa","VSK-U","Voimisteluseura Keski-Uusimaa","VSK-U","P.Tiitta","P.Tiitta"]
[51,"Inna Nyyssönen","Voimisteluseura Kieppi","Kieppi","Voimisteluseura Kieppi","Kieppi","I.Nyyssönen","I.Nyyssönen"]
[52,"Mimosa Raitamaa","Voimisteluseura Kieppi","Kieppi","Voimisteluseura Kieppi","Kieppi","M.Raitamaa","M.Raitamaa"]